Workbook

Sheet How Hard
A1: Draw | B1: Rider Name | C1: Horse Name | D1: Pen | E1: Time | F1: Final Time | G1: Placing | H1: Money Earned
A2: 1 | B2: Reid Halbert | C2: Dash Ta Mirage
A3: 2 | B3: Michael Otero | C3: Soldier | D3: Carry Over
A4: 3 | B4: Trent Wargo | C4: Smokin Koa Lena | D4: Carry Over
A5: 4 | B5: Brandon "Dubs" Wilson | C5: Lightning
A6: 5 | B6: Cody Wood | C6: Frenchmans Strekin Donuts
A7: 6 | B7: Cole Benedict | C7: Abby | D7: Carry Over
A8: 7 | B8: Hayse Worthington | C8: CM Bubbas Spice Girl | D8: Carry Over
A9: 8 | B9: Bob Mackie | C9: Dunnit
A10: 9 | B10: Joey Coates | C10: Splash
A11: 10 | B11: Bart Sirman | C11: Quick Boogie | F11: =IF(OR(D11=5,D11=10, D11=15, D11="BP",D11="SCR"),"NT",E11) -> 0
A12: 11 | F12: 0
A13: 12 | F13: 0
A14: 13 | F14: 0
A15: 14 | F15: 0
A16: 15 | F16: 0
A17: 16 | F17: 0
A18: 17 | F18: 0
A19: 18 | F19: 0
A20: 19 | F20: 0
A21: 20 | F21: 0

Sheet Open
A2: Frosted Shakes Open
A3: Futurity | B3: Der | C3: HS | D3: Age Inct. | E3: Open C/O | F3: YOU | G3: Draw | H3: Rider Name | I3: Horse Name | J3: Pen | K3: Time | L3: Final Time | M3: Placing | N3: Money Earned | P3: D Placing | R3: Split
D4: A | G4: 302 | H4: Shelby McCamey | I4: Cuz Im French | K4: 15.534 | M4: 1D 1st | N4: 982.8 | P4: 1D
G5: 257 | H5: Shaylee Hindman | I5: Oscar | K5: 15.642 | M5: 1D 2nd | N5: 842.4 | P5: 2D | R5: 0.5
G6: 218 | H6: Cassidy Champlin | I6: Takin On A Storm | K6: 15.734 | M6: 1D 3rd | N6: 702 | P6: 3D | R6: 0.5
B7: X | D7: A | G7: 168 | H7: Savannah Palmore | I7: Promise Me A Jet | K7: 15.811 | M7: 1D 4th | N7: 561.6 | P7: 4D | R7: 0.5
G8: 182 | H8: Stevi Hillman | I8: Twaynas Guy | K8: 15.85 | M8: 1D 5th | N8: 421.2 | P8: 5D | R8: 0.5
C9: X | D9: A | G9: 123 | H9: Nisa Berry | I9: VF Look Im Back | K9: 15.893 | M9: 1D 6th | N9: 327.6
B10: X | C10: X | G10: 146 | H10: Andrea Cline | I10: J Lo Fame | K10: 15.897 | M10: 1D 7th | N10: 280.8 | P10: # Entered
G11: 72 | H11: Ashley Harvey | I11: FC Strait Cajun | K11: 15.911 | M11: 1D 8th | N11: 234 | P11: =COUNTA(H4:H503) -> 340
G12: 3 | H12: Ashley Harvey | I12: World Famous Louise | K12: 15.918 | M12: 1D 9th | N12: 187.2
D13: S | G13: 169 | H13: Sherri Barnes | I13: Racing For Perks | K13: 15.921 | M13: 1D 10th | N13: 140.4 | P13: # Ran
G14: 225 | H14: Stevi Hillman | I14: PH TwoTimer Streaker | K14: 15.935 | P14: =COUNTA(K4:K503) -> 340
D15: S | G15: 177 | H15: Lisa Wernli | I15: Flashs Fine Effort | K15: 15.966
G16: 135 | H16: Darby Fox | I16: Easy French Alibi | K16: 15.979 | P16: # Left
G17: 78 | H17: Wendy WEems | I17: Goin Slo | K17: 16.01 | P17: =$P$11-$P$14 -> 0
E18: X | F18: X | G18: 110 | H18: Micah Wallace | I18: Brownies Little Red | K18: 16.036 | M18: 2D 1st | N18: 819
B19: X | G19: 175 | H19: Cassidy Champlin | I19: Casadys Cash N Fame | K19: 16.044 | M19: 2D 2nd | N19: 702
G20: 36 | H20: Wendy Suhn | I20: HLH Streakin A Fling | K20: 16.056 | M20: 2D 3rd | N20: 585
G21: 27 | H21: Andrea Sewell | I21: Abbysolutly Nlitzed | K21: 16.082 | M21: 2D 4th | N21: 468
G22: 150 | H22: TK Lawrence | I22: Pistol N A Petticoat | K22: 16.085 | M22: 2D 5th | N22: 351
B23: X | G23: 93 | H23: Kyle Leleux | I23: A Streak of Scarlet | K23: 16.101 | M23: 2D 6th | N23: 273
G24: 221 | H24: Britany Diaz | I24: Cinnamon On Top | K24: 16.102 | M24: 2D 7th | N24: 234
G25: 322 | H25: Rylee Shields | I25: Bankroll | K25: 16.107 | M25: 2D 8th | N25: 195
G26: 265 | H26: Maci Berry | I26: Lily | K26: 16.116 | M26: 2D 9th | N26: 156
D27: S | G27: 305 | H27: Shelly Shields | I27: Toast To Val | K27: 16.118 | M27: 2D 10th | N27: 117
D28: A | G28: 268 | H28: Tami Semas | I28: Streaka Ta Fame | K28: 16.141
G29: 60 | H29: Benjamin Beal | I29: Dashin Romeo | K29: 16.141
D30: A | G30: 145 | H30: Sophie Palmore | I30: JL Jamaican Me Rich | K30: 16.157
G31: 294 | H31: Nicki Zimmerman | I31: Prime Gold | K31: 16.164
D32: A | G32: 68 | H32: Dena Milner | I32: Garry | K32: 16.173
D33: A | G33: 262 | H33: Tricia Aldridge | I33: A Dash Of Killian | K33: 16.174
D34: A | G34: 261 | H34: Katie Boyd | I34: Famed French Kiss | K34: 16.188
A35: X | G35: 18 | H35: Kristen Hendewerk | I35: Tennessee Fuel | K35: 16.2
G36: 87 | H36: Mindy Holloway | I36: First Rappin Judge | K36: 16.203
D37: S | G37: 184 | H37: Martha Jordan | I37: JL Fourtafame | K37: 16.216
D38: A | G38: 309 | H38: Susan Agnew | I38: Timex | K38: 16.217
A39: X | G39: 23 | H39: Kyle Leleux | I39: Heavens Sizzler | K39: 16.235
G40: 108 | H40: Hanna Trimber | I40: Eye Jess Zoomed Bye | K40: 16.235
G41: 44 | H41: Sara Redden | I41: Ocho | K41: 16.241
G42: 186 | H42: TK Lawrence | I42: Giddy On Out | K42: 16.252
B43: X | G43: 156 | H43: Nisa Berry | I43: No Effort Makin Cash | K43: 16.272
A44: X | G44: 185 | H44: Krista Whitley | I44: Fabulace Fame | K44: 16.286
A45: X | G45: 264 | H45: Hailey Lockwood | I45: Haydaysdashinfashion | K45: 16.304
G46: 216 | H46: Krista Whitley | I46: Frenchmans Splash | K46: 16.31
D47: A | G47: 329 | H47: P J Burger | I47: Turbos French Zip | K47: 16.318
G48: 124 | H48: Rachel Primm | I48: Guys Amberetto | K48: 16.325
E49: X | F49: X | G49: 179 | H49: Shia Williams | I49: JF Frenchmans Rhythm | K49: 16.344
G50: 206 | H50: Hannah Hertel | I50: Lenasdashtavictory | K50: 16.347
D51: S | G51: 133 | H51: Sherri Barnes | I51: Famous Lil Jet | K51: 16.348
G52: 219 | H52: Shaylee Hindman | I52: A Lil Kid iN Me | K52: 16.371
D53: A | G53: 51 | H53: Mandi Cleveland | I53: Little Bit Of Load | K53: 16.381
G54: 224 | H54: Kayli Morris | I54: Fortune In Fuel | K54: 16.385
G55: 297 | H55: Nisa Berry | I55: Bob | K55: 16.389
D56: S | G56: 143 | H56: Lisa Wernli | I56: Proudtobefrench | K56: 16.396
A57: X | G57: 24 | H57: Lauren Strough | I57: Dineros Spare Change | K57: 16.409
D58: S | G58: 139 | H58: Kim Graf | I58: One Lane Ta Fame | K58: 16.436
G59: 170 | H59: Sage Tomeu | I59: Chasinadream | K59: 16.436
G60: 117 | H60: Caitlin Loomis | I60: Gold Mines Quien | K60: 16.447
G61: 126 | H61: Lisa Lucia | I61: Sticks Chic | K61: 16.447
A62: X | G62: 2 | H62: Kylee Schribner | I62: Firewater Cartel | K62: 16.448
G63: 323 | H63: Taylor Shields | I63: Allinaflash | K63: 16.449
G64: 353 | H64: Rylee Shields | I64: Richered | K64: 16.463
G65: 162 | H65: Christy Durfey | I65: Banking Ta Fame | K65: 16.466
G66: 174 | H66: Sadie Weldon | I66: WB Runnaway Pumpkin | K66: 16.466
G67: 165 | H67: Debbie Richardson | I67: VF Going Big Time | K67: 16.468
G68: 100 | H68: Kacey Kirby | I68: VVR Corona Dash | K68: 16.496
E69: X | F69: X | G69: 183 | H69: Fallon Forbes | I69: Another Bug Leo | K69: 16.499
G70: 328 | H70: Davie King | I70: Alvin | K70: 16.499
D71: A | G71: 252 | H71: Brooke Kelley | I71: Nu Bueno Karma | K71: 16.5
G72: 39 | H72: Sarah Cobb | I72: Lil Snippy Girl | K72: 16.509
E73: X | F73: X | G73: 289 | H73: Emily Williams | I73: Heza Froster Charm | K73: 16.516
G74: 201 | H74: Nicoletta Bean | I74: Famous China Doll | K74: 16.516
G75: 187 | H75: Casey Hammons | I75: BH Trip Ta Fame | K75: 16.525
D76: S | G76: 136 | H76: Laura Creel | I76: Frenchmans Dox RX | K76: 16.527
G77: 107 | H77: Lori Marsh | I77: Frenchmans Lucy Lou | K77: 16.535 | M77: 3D 1st | N77: 655.2
A78: X | G78: 204 | H78: Stevi Hillman | I78: DTF Texas Moon | K78: 16.545 | M78: 3D 2nd | N78: 561.6
G79: 47 | H79: Courtney Worthington | I79: CM Bubblin Barbie | K79: 16.565 | M79: 3D 3rd | N79: 468
A80: X | G80: 82 | H80: Lauren Strough | I80: Sunny C Windy Anna | K80: 16.578 | M80: 3D 4th | N80: 374.4
D81: A | G81: 116 | H81: Molly Steffen | I81: Frosted County | K81: 16.582 | M81: 3D 5th | N81: 280.8
G82: 195 | H82: Britany Diaz | I82: Aprils Perky DUde | K82: 16.587 | M82: 3D 6th | N82: 218.4
G83: 330 | H83: Misty Peek | I83: Amos | K83: 16.594 | M83: 3D 7th | N83: 187.2
D84: S | G84: 210 | H84: Lisa Wernli | I84: Babe On The Run | K84: 16.614 | M84: 3D 8th | N84: 156
A85: X | G85: 274 | H85: Nisa Berry | I85: NB Keepin Time | K85: 16.626 | M85: 3D 9th | N85: 124.8
D86: A | G86: 290 | H86: Katie Boyd | I86: Frenchmen R Hot | K86: 16.628 | M86: 3D 10th | N86: 93.6
G87: 35 | H87: Ashley Harvey | I87: OE Money In My Socks | K87: 16.633
G88: 200 | H88: Stephanie Snazuk | I88: Crazy Jane | K88: 16.641
G89: 59 | H89: Mindy Holloway | I89: Rebels Cash Cartel | K89: 16.651
G90: 321 | H90: Nicki Zimmerman | I90: Streak N Famous | K90: 16.659
G91: 306 | H91: Tyler Vandermeer | I91: Gee I Fueled Yawl | K91: 16.66
G92: 15 | H92: Cassidy Teague | I92: Bebe Gun | K92: 16.662
D93: S | G93: 137 | H93: Traci Crutcher | I93: Chopper | K93: 16.664
G94: 351 | H94: Davie King | I94: Jessie | K94: 16.684
G95: 142 | H95: Cassidy Thomas | I95: Aiyanna | K95: 16.685
G96: 104 | H96: Johnell Ray | I96: Smooth Your Jets | K96: 16.687
G97: 250 | H97: Jenna Napier | I97: Frenchmans Dually | K97: 16.692
C98: X | D98: A | G98: 312 | H98: Carissa Stoner | I98: Dash Ta Profits | K98: 16.697
D99: A | G99: 296 | H99: Hailey Lockwood | I99: Prime Sugar Cat | K99: 16.71
G100: 207 | H100: Darby Fox | I100: Frosted With Fame | K100: 16.712
G101: 17 | H101: Lessa Wahlenmaier | I101: Hoku Pele Bluegrass | K101: 16.73
G102: 196 | H102: Megan Boone | I102: Firey Hot Coco | K102: 16.73
E103: X | F103: X | G103: 331 | H103: Tyra Bennett | I103: Ima Kool Cassie | K103: 16.74
G104: 226 | H104: Terri Ford | I104: Injun Needs Cash | K104: 16.74
G105: 149 | H105: Shelby Garcia | I105: Jefe | K105: 16.742
G106: 333 | H106: Shelby Rowe | I106: McCalls Smart Chic | K106: 16.745
D107: S | G107: 241 | H107: Devon Bouldin | I107: Dwightsthirtsy | K107: 16.747
G108: 121 | H108: Mark Malone | I108: Montana | K108: 16.748
G109: 158 | H109: Brandi Zimmer | I109: Renos Stat | K109: 16.748
G110: 73 | H110: Wendy Suhn | I110: She B Astreakin | K110: 16.749
G111: 315 | H111: Jackie Dalchow | I111: Flits Vanilla Ice | K111: 16.757
E112: X | F112: X | G112: 80 | H112: Presleigh Akers | I112: Short Nitalena | K112: 16.758
D113: S | G113: 62 | H113: Dee Dee Jordon | I113: Fame Flinging Rebel | K113: 16.766
D114: S | G114: 106 | H114: Tammy Rokus | I114: Mitey Confederate | K114: 16.766
G115: 129 | H115: Kacey Kirby | I115: Bangup At The Bar | K115: 16.773
D116: A | G116: 263 | H116: Jennifer Cullen | I116: HLC Pretty Lil Sugar | K116: 16.775
G117: 148 | H117: Krista Whitley | I117: Smooth Perks Alive | K117: 16.779
E118: X | F118: X | G118: 230 | H118: Lindsey Reichart | I118: Freak Frosted Fame | K118: 16.783
D119: A | G119: 127 | H119: Kelly Mancinelli | I119: Nicks Twister | K119: 16.808
A120: X | G120: 53 | H120: Jade Crago | I120: High Road Ta Fame | K120: 16.815
G121: 277 | H121: Ashleigh Coates | I121: Pass M Moon | K121: 16.815
G122: 32 | H122: Shannon Black | I122: TS Jets Blazin Lena | K122: 16.822
G123: 325 | H123: Kiley Dalchow | I123: Vegas First Snow | K123: 16.823
G124: 81 | H124: Linda Hunter | I124: Paid Prescription | K124: 16.832
G125: 85 | H125: Jade Crago | I125: JC Burnin It Down | K125: 16.832
G126: 69 | H126: Karen Shelley | I126: Flying Bar Bailey | K126: 16.833
G127: 320 | H127: Sierra Melby | I127: H2 | K127: 16.835
G128: 337 | H128: Haley Wright | I128: Rockin C Angel | K128: 16.846
G129: 354 | H129: Taylor Shields | I129: Fire On The Water | K129: 16.864
G130: 336 | H130: Rylee Shields | I130: Ivory | K130: 16.872
D131: A | G131: 181 | H131: Sky Thornburg | I131: Indian Rio Chex | K131: 16.878
G132: 151 | H132: Diana Corey | I132: Nicks Flying Bug | K132: 16.886
A133: X | G133: 37 | H133: Scamper Cole | I133: VF Eddie Flashed Me | K133: 16.897
G134: 299 | H134: Sierra Melby | I134: H1 | K134: 16.905
G135: 334 | H135: Jennifer Mervine | I135: SHF Tee Cup Kiss | K135: 16.915
G136: 144 | H136: Grethchen Goedeken | I136: Fine Whatever | K136: 16.917
G137: 313 | H137: Morgan Dalchow | I137: The Last Handyman | K137: 16.921
D138: A | G138: 256 | H138: Megan Fowler | I138: Heavenly Kissed | K138: 16.925
A139: X | G139: 26 | H139: Tori Volk | I139: CN Holy Cow | K139: 16.927
G140: 45 | H140: Wendy Weems | I140: Judgilicious | K140: 16.927
G141: 105 | H141: Scamper Cole | I141: Chile Cole | K141: 16.95
A142: X | G142: 30 | H142: DeAnn Morgan | I142: Paid For A Fling | K142: 16.952
D143: A | G143: 255 | H143: Jo Kirby | I143: Heavenly Joak | K143: 16.959
G144: 197 | H144: Daisy Baird | I144: Teninas Smart Cookie | K144: 16.96
G145: 311 | H145: Paige Wiseman | I145: Hesa Smart Rocker | K145: 16.962
G146: 222 | H146: Lee Ann Guilkey | I146: Blazin Gator | K146: 16.972
G147: 171 | H147: Fawn Aldrich | I147: Flit Bars Big Man | K147: 16.978
G148: 228 | H148: Tatum Nelson | I148: Whats Your Ringtone | K148: 16.987
G149: 352 | H149: Sierra Melby | I149: H3 | K149: 16.988
G150: 247 | H150: Stephanie Snazuk | I150: Mr JB 0719 | K150: 16.99
G151: 61 | H151: Raley Zebrauskas | I151: Shortys Dualinbadger | K151: 16.994
G152: 103 | H152: Kelsey Graf | I152: Voo | K152: 16.996
G153: 341 | H153: Nicki Zimmerman | I153: Talented Charmer | K153: 17.006
D154: A | G154: 205 | H154: Tricia Aldridge | I154: Hitmanforafrenchman | K154: 17.012
D155: S | G155: 193 | H155: Jana Kurosky | I155: TCS Rare M an M Fol | K155: 17.018
E156: X | F156: X | G156: 86 | H156: Ellie Hunter | I156: Classic Sunray | K156: 17.023
G157: 54 | H157: Jordon Moore Miller | I157: SJR Sulenas Sonz | K157: 17.023
A158: X | G158: 20 | H158: Andrea Cline | I158: Ladies Pink Cash | K158: 17.027
G159: 33 | H159: Marie Anderson | I159: Hickory Suntan Marks | K159: 17.034 | M159: 4D 1st | N159: 491.4
G160: 164 | H160: Hannah Hertel | I160: Egos Movimg Effort | K160: 17.049 | M160: 4D 2nd | N160: 421.2
D161: A | G161: 203 | H161: Tiffany Durham | I161: Dashin Luke | K161: 17.056 | M161: 4D 3rd | N161: 351
G162: 214 | H162: Fawn Aldrich | I162: Stripping Royalty | K162: 17.073 | M162: 4D 4th/5th | N162: 246
G163: 258 | H163: Christy Durfey | I163: Jess Blazin Otoe | K163: 17.073 | M163: 4D 4th/5th | N163: 246
E164: X | F164: X | G164: 276 | H164: Stormi Branch | I164: Peppy | K164: 17.086 | M164: 4D 6th/7th | N164: 152
G165: 359 | H165: Michael Otero | I165: SOldier | K165: 17.086 | M165: 4D 6th/7th | N165: 152
G166: 6 | H166: Sara Redden | I166: Pedro | K166: 17.094 | M166: 4D 8th | N166: 117
G167: 232 | H167: Nicole Buell | I167: Dirty Money | K167: 17.098 | M167: 4D 9th/10th | N167: 82
E168: X | F168: X | G168: 284 | H168: Reece Cook | I168: Frosted In Dreams | K168: 17.098 | M168: 4D 9th/10th | N168: 82
D169: S | G169: 113 | H169: Dee Dee Jordon | I169: Lil Yella Draw | K169: 17.099
G170: 141 | H170: Hollie Sirman | I170: Easter Bunny Special | K170: 17.111
G171: 56 | H171: Kandise Willingham | I171: Autumn Belle | K171: 17.112
G172: 342 | H172: Susan Agnew | I172: Splash | K172: 17.122
D173: A | G173: 231 | H173: Megan Mack | I173: Chic Pleeze Shine | K173: 17.157
D174: S | G174: 155 | H174: Mary Carter | I174: Bullys Tiger Eye | K174: 17.157
D175: A | G175: 259 | H175: Kendi Cordova | I175: TRR Whiskey Bandit | K175: 17.167
G176: 199 | H176: Adelita Tyson-Bell | I176: Nick A Pop | K176: 17.17
D177: A | G177: 119 | H177: Kalie Cook | I177: Zanzibar Hawk | K177: 17.171
A178: X | G178: 83 | H178: Andrea Cline | I178: Furociousladychaser | K178: 17.19
G179: 5 | H179: Wendy Suhn | I179: Hes Just A Fling | K179: 17.192
G180: 160 | H180: Megan Boone | I180: USS Nu Mercedes | K180: 17.209
E181: X | F181: X | G181: 239 | H181: Taylor Coward | I181: PC Sunnerelse | K181: 17.227
D182: S | G182: 134 | H182: Tracie Schoenthal | I182: Badger | K182: 17.231
E183: X | F183: X | G183: 178 | H183: Joelie Boenker | I183: Raising Fame | K183: 17.234
G184: 91 | H184: Lessa Wahlenmaier | I184: Cash N OnHollywood | K184: 17.242
G185: 14 | H185: Kristy Schribner | I185: Peanut | K185: 17.25
B186: X | C186: X | G186: 114 | H186: Andrea Cline | I186: Blurry Bug Leo | K186: 17.258
G187: 43 | H187: LJ LaRue | I187: Flash Gordon | K187: 17.271
D188: S | G188: 280 | H188: Karen Richardson | I188: Cause it’s a Chex | K188: 17.288
G189: 260 | H189: Shelby McCamey | I189: PA Faith N Fame | K189: 17.319
B190: X | G190: 194 | H190: Nisa Berry | I190: Code Name Fame | K190: 17.325
G191: 40 | H191: Hanna Trimber | I191: Ivory Candy | K191: 17.332
E192: X | F192: X | G192: 275 | H192: Kaylee Buchanan | I192: A Widow High | K192: 17.343
G193: 318 | H193: Suzanne Overton | I193: Color Me Summer | K193: 17.347
G194: 300 | H194: Rylee Shields | I194: VS Bugsinthe Wind | K194: 17.369
D195: A | G195: 198 | H195: Madison Sullivan | I195: Smokin Fire Dance | K195: 17.372
A196: X | G196: 12 | H196: Wyatt Paul | I196: Hurricane Harvey | K196: 17.372
G197: 41 | H197: Kristina Brem | I197: Fast N Fergie | K197: 17.388
D198: S | G198: 189 | H198: Diana Corey | I198: Ladys BuG Jewel | K198: 17.395
G199: 115 | H199: Jessica Patanella | I199: Ann Get Your Gun | K199: 17.405
G200: 70 | H200: Lori Marsh | I200: Cash For The Jewels | K200: 17.43
D201: A | G201: 343 | H201: Carissa Stoner | I201: Rusty French Fame | K201: 17.435
... 302 more rows

Sheet Senior
A1: Futurity | B1: Der | C1: Age Inct. | D1: BBR | E1: Draw | F1: Rider Name | G1: Horse Name | H1: Pen | I1: Time | J1: Final Time | K1: Placing | L1: Money Earned
E2: 1 | F2: Sherri Barnes | G2: Racing For Perks | I2: 15.921 | K2: 1D 1st | L2: 139
E3: 2 | F3: Lisa Wernli | G3: Flashs Fine Effort | I3: 15.966 | K3: 1D 2nd | L3: 92
E4: 3 | F4: Shelly Shields | G4: Toast To Val | I4: 16.118
E5: 4 | F5: Martha Jordan | G5: JL Fourtafame | I5: 16.216
E6: 5 | F6: Sherri Barnes | G6: Famous Lil Jet | I6: 16.348
E7: 6 | F7: Lisa Wernli | G7: Proudtobefrench | I7: 16.396
E8: 7 | F8: Kim Graf | G8: One Lane Ta Fame | I8: 16.436 | K8: 2D 1st | L8: 119
E9: 8 | F9: Laura Creel | G9: Frenchmans Dox RX | I9: 16.527 | K9: 2D 2nd | L9: 79
E10: 9 | F10: Lisa Wernli | G10: Babe On The Run | I10: 16.614
E11: 10 | F11: Traci Crutcher | G11: Chopper | I11: 16.664
E12: 11 | F12: Devon Bouldin | G12: Dwightsthirtsy | I12: 16.747
E13: 12 | F13: Dee Dee Jordon | G13: Fame Flinging Rebel | I13: 16.766
E14: 13 | F14: Tammy Rokus | G14: Mitey Confederate | I14: 16.766
E15: 14 | F15: Jana Kurosky | G15: TCS Rare M an M Fol | I15: 17.018 | K15: 3D 1st | L15: 79
E16: 15 | F16: Dee Dee Jordon | G16: Lil Yella Draw | I16: 17.099 | K16: 3D 2nd | L16: 53
E17: 16 | F17: Mary Carter | G17: Bullys Tiger Eye | I17: 17.157
E18: 17 | F18: Tracie Schoenthal | G18: Badger | I18: 17.231
E19: 18 | F19: Karen Richardson | G19: Cause it’s a Chex | I19: 17.288
E20: 19 | F20: Diana Corey | G20: Ladys BuG Jewel | I20: 17.395
E21: 20 | F21: Lisa Jo Velliquette | G21: Namgis D 44 | I21: 17.482 | K21: 4D 1st | L21: 59
E22: 21 | F22: Renae Osborne | G22: Aggies Honeymoon | I22: 17.645 | K22: 4D 2nd | L22: 40
E23: 22 | F23: Marlyn Bland | G23: Nicks Super Chance | I23: 17.703
E24: 23 | F24: Jackie Bouldin | G24: GagesIndian | I24: 17.903
E25: 24 | F25: Charlie Coella | G25: Stick Lil Bro | I25: 18.012
E26: 25 | F26: Lisa Corey | G26: Beda Dream | I26: 18.159
E27: 26 | F27: Sherryl Burgess | G27: Boomer T Fellers | I27: 18.185
E28: 27 | F28: Mary Carter | G28: Bully Bully Fame | I28: 18.227
E29: 28 | F29: Kevin Davis | G29: Gibbs | I29: 18.25
E30: 29 | F30: Teresa Sisk | G30: Chans Rocky Leo | I30: 18.437
E31: 30 | F31: Whitney Parks | G31: Ole Cuz | I31: 18.901
E32: 31 | F32: Jana Kurosky | G32: Winnies Red Kai | I32: nt16.604
E33: 32 | F33: Terri Stitle | G33: Rapids Rose | I33: nt17.321
E34: 33 | F34: Kasey Homan | G34: Bitsy | I34: nt18.187
E35: 34
E36: 35
E37: 36
E38: 37
E39: 38
E40: 39
E41: 40
E42: 41 | J42: =IF(OR(H42=5,H42=10, H42=15, H42="BP",H42="SCR"),"NT",I42) -> 0
E43: 42 | J43: 0
E44: 43 | J44: 0
E45: 44 | J45: 0
E46: 45 | J46: 0
E47: 46 | J47: 0
E48: 47 | J48: 0
E49: 48 | J49: 0
E50: 49 | J50: 0
E51: 50 | J51: 0
E52: 51 | J52: 0
E53: 52 | J53: 0
E54: 53 | J54: 0
E55: 54 | J55: 0
E56: 55 | J56: 0
E57: 56 | J57: 0
E58: 57 | J58: 0
E59: 58 | J59: 0
E60: 59 | J60: 0
E61: 60 | J61: 0
E62: 61 | J62: 0
E63: 62 | J63: 0
E64: 63 | J64: 0
E65: 64 | J65: 0
E66: 65 | J66: 0
E67: 66 | J67: =IF(OR(H67=5,H67=10, H67=15, H67="BP",H67="SCR"),"NT",I67) -> 0
E68: 67 | J68: 0
E69: 68 | J69: 0
E70: 69 | J70: 0
E71: 70 | J71: 0
E72: 71 | J72: 0
E73: 72 | J73: 0
E74: 73 | J74: 0
E75: 74 | J75: 0
E76: 75 | J76: 0
E77: 76 | J77: 0
E78: 77 | J78: 0
E79: 78 | J79: 0
E80: 79 | J80: 0
E81: 80 | J81: 0
E82: 81 | J82: 0
E83: 82 | J83: 0
E84: 83 | J84: 0
E85: 84 | J85: 0
E86: 85 | J86: 0
E87: 86 | J87: 0
E88: 87 | J88: 0
E89: 88 | J89: 0
E90: 89 | J90: 0
E91: 90 | J91: 0
E92: 91 | J92: 0
E93: 92 | J93: 0
E94: 93 | J94: 0
E95: 94 | J95: 0
E96: 95 | J96: 0
E97: 96 | J97: 0
E98: 97 | J98: 0
E99: 98 | J99: 0
E100: 99 | J100: 0
E101: 100 | J101: 0
E102: 101 | J102: 0
E103: 102 | J103: 0
E104: 103 | J104: 0
E105: 104 | J105: 0
E106: 105 | J106: 0
E107: 106 | J107: 0
E108: 107 | J108: 0
E109: 108 | J109: 0
E110: 109 | J110: 0
E111: 110 | J111: 0
E112: 111 | J112: 0
E113: 112 | J113: 0
E114: 113 | J114: 0
E115: 114 | J115: 0
E116: 115 | J116: 0
E117: 116 | J117: 0
E118: 117 | J118: 0
E119: 118 | J119: 0
E120: 119 | J120: 0
E121: 120 | J121: 0
E122: 121 | J122: 0
E123: 122 | J123: 0
E124: 123 | J124: 0
E125: 124 | J125: 0
E126: 125 | J126: 0
E127: 126 | J127: 0
E128: 127 | J128: 0
E129: 128 | J129: 0
E130: 129 | J130: 0
E131: 130 | J131: =IF(OR(H131=5,H131=10, H131=15, H131="BP",H131="SCR"),"NT",I131) -> 0
E132: 131 | J132: 0
E133: 132 | J133: 0
E134: 133 | J134: 0
E135: 134 | J135: 0
E136: 135 | J136: 0
E137: 136 | J137: 0
E138: 137 | J138: 0
E139: 138 | J139: 0
E140: 139 | J140: 0
E141: 140 | J141: 0
E142: 141 | J142: 0
E143: 142 | J143: 0
E144: 143 | J144: 0
E145: 144 | J145: 0
E146: 145 | J146: 0
E147: 146 | J147: 0
E148: 147 | J148: 0
E149: 148 | J149: 0
E150: 149 | J150: 0
E151: 150 | J151: 0
E152: 151 | J152: 0
E153: 152 | J153: 0
E154: 153 | J154: 0
E155: 154 | J155: 0
E156: 155 | J156: 0
E157: 156 | J157: 0
E158: 157 | J158: 0
E159: 158 | J159: 0
E160: 159 | J160: 0
E161: 160 | J161: 0
E162: 161 | J162: 0
E163: 162 | J163: 0
E164: 163 | J164: 0
E165: 164 | J165: 0
E166: 165 | J166: 0
E167: 166 | J167: 0
E168: 167 | J168: 0
E169: 168 | J169: 0
E170: 169 | J170: 0
E171: 170 | J171: 0
E172: 171 | J172: 0
E173: 172 | J173: 0
E174: 173 | J174: 0
E175: 174 | J175: 0
E176: 175 | J176: 0
E177: 176 | J177: 0
E178: 177 | J178: 0
E179: 178 | J179: 0
E180: 179 | J180: 0
E181: 180 | J181: 0
E182: 181 | J182: 0
E183: 182 | J183: 0
E184: 183 | J184: 0
E185: 184 | J185: 0
E186: 185 | J186: 0
E187: 186 | J187: 0
E188: 187 | J188: 0
E189: 188 | J189: 0
E190: 189 | J190: 0
E191: 190 | J191: 0
E192: 191 | J192: 0
E193: 192 | J193: 0
E194: 193 | J194: 0
E195: 194 | J195: =IF(OR(H195=5,H195=10, H195=15, H195="BP",H195="SCR"),"NT",I195) -> 0
E196: 195 | J196: 0
E197: 196 | J197: 0
E198: 197 | J198: 0
E199: 198 | J199: 0
E200: 199 | J200: 0
... 101 more rows

Sheet Adult
A1: Futurity | B1: Der | C1: Age Inct. | D1: BBR | E1: Draw | F1: Rider Name | G1: Horse Name | H1: Pen | I1: Time | J1: Final Time | K1: Placing | L1: Money Earned
E2: 1 | F2: Shelby McCamey | G2: Cuz Im French | I2: 15.534 | K2: 1D 1st | L2: 154
E3: 2 | F3: Savannah Palmore | G3: Promise Me A Jet | I3: 15.811 | K3: 1D 2nd | L3: 92.4
E4: 3 | F4: Nisa Berry | G4: VF Look Im Back | I4: 15.893 | K4: 1D 3rd | L4: 61.6
E5: 4 | F5: Tami Semas | G5: Streaka Ta Fame | I5: 16.141 | K5: 2D 1st | L5: 132
E6: 5 | F6: Sophie Palmore | G6: JL Jamaican Me Rich | I6: 16.157 | K6: 2D 2nd | L6: 79
E7: 6 | F7: Dena Milner | G7: Garry | I7: 16.173 | K7: 2D 3rd | L7: 53
E8: 7 | F8: Tricia Aldridge | G8: A Dash Of Killian | I8: 16.174
E9: 8 | F9: Katie Boyd | G9: Famed French Kiss | I9: 16.188
E10: 9 | F10: Susan Agnew | G10: Timex | I10: 16.217
E11: 10 | F11: P J Burger | G11: Turbos French Zip | I11: 16.318
E12: 11 | F12: Mandi Cleveland | G12: Little Bit Of Load | I12: 16.381
E13: 12 | F13: Brooke Kelley | G13: Nu Bueno Karma | I13: 16.5
E14: 13 | F14: Molly Steffen | G14: Frosted County | I14: 16.582 | K14: 3D 1st | L14: 88
E15: 14 | F15: Katie Boyd | G15: Frenchmen R Hot | I15: 16.628 | K15: 3D 2nd | L15: 53
E16: 15 | F16: Carissa Stoner | G16: Dash Ta Profits | I16: 16.697 | K16: 3D 3rd | L16: 35
E17: 16 | F17: Hailey Lockwood | G17: Prime Sugar Cat | I17: 16.71
E18: 17 | F18: Jennifer Cullen | G18: HLC Pretty Lil Sugar | I18: 16.775
E19: 18 | F19: Kelly Mancinelli | G19: Nicks Twister | I19: 16.808
E20: 19 | F20: Sky Thornburg | G20: Indian Rio Chex | I20: 16.878
E21: 20 | F21: Megan Fowler | G21: Heavenly Kissed | I21: 16.925
E22: 21 | F22: Jo Kirby | G22: Heavenly Joak | I22: 16.959
E23: 22 | F23: Tricia Aldridge | G23: Hitmanforafrenchman | I23: 17.012
E24: 23 | F24: Tiffany Durham | G24: Dashin Luke | I24: 17.056 | K24: 4D 1st | L24: 66
E25: 24 | F25: Megan Mack | G25: Chic Pleeze Shine | I25: 17.157 | K25: 4D 2nd | L25: 40
E26: 25 | F26: Kendi Cordova | G26: TRR Whiskey Bandit | I26: 17.167 | K26: 4D 3rd | L26: 26
E27: 26 | F27: Kalie Cook | G27: Zanzibar Hawk | I27: 17.171
E28: 27 | F28: Madison Sullivan | G28: Smokin Fire Dance | I28: 17.372
E29: 28 | F29: Carissa Stoner | G29: Rusty French Fame | I29: 17.435
E30: 29 | F30: Tyler Vandermeer | G30: Moon Dreaming | I30: 17.507
E31: 30 | F31: Aryn Wilkerson | G31: SpicyLittleStar | I31: 17.614
E32: 31 | F32: Jesse Budd | G32: Sonny | I32: 17.792
E33: 32 | F33: Jesse Budd | G33: Flicker Nic | I33: 18.288
E34: 33 | F34: Tiffany Durham | G34: Spect Snow | I34: 18.436
E35: 34 | F35: Tiffany Durham | G35: Colonels Kerosene | I35: 22.827
E36: 35 | F36: Timberly Erickson | G36: Mines Fast | I36: nt
E37: 36 | F37: Brittany Fellows | G37: Le Jane | I37: nt16.333
E38: 37 | F38: Brittany Fellows | G38: Texas Ta Fame | I38: nt16.402
E39: 38 | F39: Addie Davis | G39: VF Famous Lika | I39: NT16.477
E40: 39 | F40: Sophie Palmore | G40: Heavenbringsmoolah | I40: NT16.585
E41: 40 | F41: Molly Steffen | G41: Rugged French Guy | I41: nt16.686
E42: 41 | F42: Hailey Lockwood | G42: Corona Share Of Fame | I42: nt16.822
E43: 42 | F43: Tricia Aldridge | G43: Sinoloa Stinson | I43: NT17.428
E44: 43 | F44: Lynn Whisenant | G44: Heza Streakin Wonder | I44: NT34.226
E45: 44 | F45: Laura Pearson | G45: Honky Tonk Cds | I45: NT99.999
E46: 45 | F46: Trent Wargo | G46: Smokin Ka Lena | I46: NT17.129
E47: 46
E48: 47
E49: 48
E50: 49
E51: 50
E52: 51 | J52: =IF(OR(H52=5,H52=10, H52=15, H52="BP",H52="SCR"),"NT",I52) -> 0
E53: 52 | J53: 0
E54: 53 | J54: 0
E55: 54 | J55: 0
E56: 55 | J56: 0
E57: 56 | J57: 0
E58: 57 | J58: 0
E59: 58 | J59: 0
E60: 59 | J60: 0
E61: 60 | J61: 0
E62: 61 | J62: 0
E63: 62 | J63: 0
E64: 63 | J64: 0
E65: 64 | J65: 0
E66: 65 | J66: 0
E67: 66 | J67: =IF(OR(H67=5,H67=10, H67=15, H67="BP",H67="SCR"),"NT",I67) -> 0
E68: 67 | J68: 0
E69: 68 | J69: 0
E70: 69 | J70: 0
E71: 70 | J71: 0
E72: 71 | J72: 0
E73: 72 | J73: 0
E74: 73 | J74: 0
E75: 74 | J75: 0
E76: 75 | J76: 0
E77: 76 | J77: 0
E78: 77 | J78: 0
E79: 78 | J79: 0
E80: 79 | J80: 0
E81: 80 | J81: 0
E82: 81 | J82: 0
E83: 82 | J83: 0
E84: 83 | J84: 0
E85: 84 | J85: 0
E86: 85 | J86: 0
E87: 86 | J87: 0
E88: 87 | J88: 0
E89: 88 | J89: 0
E90: 89 | J90: 0
E91: 90 | J91: 0
E92: 91 | J92: 0
E93: 92 | J93: 0
E94: 93 | J94: 0
E95: 94 | J95: 0
E96: 95 | J96: 0
E97: 96 | J97: 0
E98: 97 | J98: 0
E99: 98 | J99: 0
E100: 99 | J100: 0
E101: 100 | J101: 0
E102: 101 | J102: 0
E103: 102 | J103: 0
E104: 103 | J104: 0
E105: 104 | J105: 0
E106: 105 | J106: 0
E107: 106 | J107: 0
E108: 107 | J108: 0
E109: 108 | J109: 0
E110: 109 | J110: 0
E111: 110 | J111: 0
E112: 111 | J112: 0
E113: 112 | J113: 0
E114: 113 | J114: 0
E115: 114 | J115: 0
E116: 115 | J116: 0
E117: 116 | J117: 0
E118: 117 | J118: 0
E119: 118 | J119: 0
E120: 119 | J120: 0
E121: 120 | J121: 0
E122: 121 | J122: 0
E123: 122 | J123: 0
E124: 123 | J124: 0
E125: 124 | J125: 0
E126: 125 | J126: 0
E127: 126 | J127: 0
E128: 127 | J128: 0
E129: 128 | J129: 0
E130: 129 | J130: 0
E131: 130 | J131: =IF(OR(H131=5,H131=10, H131=15, H131="BP",H131="SCR"),"NT",I131) -> 0
E132: 131 | J132: 0
E133: 132 | J133: 0
E134: 133 | J134: 0
E135: 134 | J135: 0
E136: 135 | J136: 0
E137: 136 | J137: 0
E138: 137 | J138: 0
E139: 138 | J139: 0
E140: 139 | J140: 0
E141: 140 | J141: 0
E142: 141 | J142: 0
E143: 142 | J143: 0
E144: 143 | J144: 0
E145: 144 | J145: 0
E146: 145 | J146: 0
E147: 146 | J147: 0
E148: 147 | J148: 0
E149: 148 | J149: 0
E150: 149 | J150: 0
E151: 150 | J151: 0
E152: 151 | J152: 0
E153: 152 | J153: 0
E154: 153 | J154: 0
E155: 154 | J155: 0
E156: 155 | J156: 0
E157: 156 | J157: 0
E158: 157 | J158: 0
E159: 158 | J159: 0
E160: 159 | J160: 0
E161: 160 | J161: 0
E162: 161 | J162: 0
E163: 162 | J163: 0
E164: 163 | J164: 0
E165: 164 | J165: 0
E166: 165 | J166: 0
E167: 166 | J167: 0
E168: 167 | J168: 0
E169: 168 | J169: 0
E170: 169 | J170: 0
E171: 170 | J171: 0
E172: 171 | J172: 0
E173: 172 | J173: 0
E174: 173 | J174: 0
E175: 174 | J175: 0
E176: 175 | J176: 0
E177: 176 | J177: 0
E178: 177 | J178: 0
E179: 178 | J179: 0
E180: 179 | J180: 0
E181: 180 | J181: 0
E182: 181 | J182: 0
E183: 182 | J183: 0
E184: 183 | J184: 0
E185: 184 | J185: 0
E186: 185 | J186: 0
E187: 186 | J187: 0
E188: 187 | J188: 0
E189: 188 | J189: 0
E190: 189 | J190: 0
E191: 190 | J191: 0
E192: 191 | J192: 0
E193: 192 | J193: 0
E194: 193 | J194: 0
E195: 194 | J195: =IF(OR(H195=5,H195=10, H195=15, H195="BP",H195="SCR"),"NT",I195) -> 0
E196: 195 | J196: 0
E197: 196 | J197: 0
E198: 197 | J198: 0
E199: 198 | J199: 0
E200: 199 | J200: 0
... 101 more rows

Sheet Youth
A1: Futurity | B1: Der | C1: Age Inct. | D1: BBR | E1: Draw | F1: Rider Name | G1: Horse Name | H1: Pen | I1: Time | J1: Placing | K1: Money Earned
E2: 1 | F2: Micah Wallace | G2: Brownies Little Red | I2: 16.036 | J2: 1D 1st | K2: 188
E3: 2 | F3: Shia Williams | G3: JF Frenchmans Rhythm | I3: 16.344 | J3: 1D 2nd | K3: 125
E4: 3 | F4: Shea Nicholson | G4: Confederatefirenmoon | I4: 16.393
E5: 4 | F5: Fallon Forbes | G5: Another Bug Leo | I5: 16.499
E6: 5 | F6: Emily Williams | G6: Heza Froster Charm | I6: 16.516
E7: 6 | F7: Tyra Bennett | G7: Ima Kool Cassie | I7: 16.74 | J7: 2D 1st | K7: 161
E8: 7 | F8: Presleigh Akers | G8: Short Nitalena | I8: 16.758 | J8: 2D 2nd | K8: 108
E9: 8 | F9: Lindsey Reichart | G9: Freak Frosted Fame | I9: 16.783
E10: 9 | F10: Ellie Hunter | G10: Classic Sunray | I10: 17.023
E11: 10 | F11: Stormi Branch | G11: Peppy | I11: 17.086 | J11: 3D 1st | K11: 108
E12: 11 | F12: Reece Cook | G12: Frosted In Dreams | I12: 17.098 | J12: 3D 2nd | K12: 72
E13: 12 | F13: Taylor Coward | G13: PC Sunnerelse | I13: 17.227
E14: 13 | F14: Joelie Boenker | G14: Raising Fame | I14: 17.234
E15: 14 | F15: Kaylee Buchanan | G15: A Widow High | I15: 17.343
E16: 15 | F16: Jaidyn Ornelas | G16: Firstee | I16: 18.161 | J16: 5D 1st | K16: 81
E17: 16 | F17: Cooper Peak | I17: 18.405 | J17: 5D 2nd | K17: 54
E18: 17 | F18: Alexa Aviles | G18: Midnight | I18: 18.493
E19: 18 | F19: Kaylee Lehrmann | G19: MRF Happens In Rio | I19: 19.783
E20: 19 | F20: Lili Weaver | G20: Buster | I20: 21.208
E21: 20 | F21: Caitlyn Carter | G21: Penny | I21: 21.606
E22: 21 | F22: Mya Aviles | G22: Oreo | I22: nt
E23: 22 | F23: Reece Cook | G23: Bar Tee Peanut | I23: nt.16.797
E24: 23 | F24: Riley Cook | G24: Waylon James | I24: nt15.852
E25: 24 | F25: Fallon Forbes | G25: Cantina Rascal | I25: nt16.723
E26: 25 | F26: Fallon Forbes | G26: Don't Care Who U R | I26: nt16.777
E27: 26 | F27: Heavenli Schribner | G27: Daffy | I27: nt17.247
E28: 27 | F28: Joelie Boenker | G28: JK Note My Fame | I28: NT17.334
E29: 28 | F29: Quinlie Boenker | G29: Easys Tiny Streak | I29: NT18.161
E30: 29 | F30: Jordan Harmon | G30: Doc Hollywood Frost | I30: nt19.656
E31: 30 | F31: Hannah McCabe | G31: JE Diecisiete | I31: nt21.160
E32: 31 | F32: Rylie Auvenshine | G32: Two Eyed Barron Leo Jack | I32: nt99.999
E33: 32 | F33: Jacy Pierce | G33: Soldier | I33: NT99.999
E34: 33
E35: 34
E36: 35
E37: 36
E38: 37
E39: 38
E40: 39
E41: 40
E42: 41
E43: 42
E44: 43
E45: 44
E46: 45
E47: 46
E48: 47
E49: 48
E50: 49
E51: 50
E52: 51
E53: 52
E54: 53
E55: 54
E56: 55
E57: 56
E58: 57
E59: 58
E60: 59
E61: 60
E62: 61
E63: 62
E64: 63
E65: 64
E66: 65
E67: 66
E68: 67
E69: 68
E70: 69
E71: 70
E72: 71
E73: 72
E74: 73
E75: 74
E76: 75
E77: 76
E78: 77
E79: 78
E80: 79
E81: 80
E82: 81
E83: 82
E84: 83
E85: 84
E86: 85
E87: 86
E88: 87
E89: 88
E90: 89
E91: 90
E92: 91
E93: 92
E94: 93
E95: 94
E96: 95
E97: 96
E98: 97
E99: 98
E100: 99
E101: 100
E102: 101
E103: 102
E104: 103
E105: 104
E106: 105
E107: 106
E108: 107
E109: 108
E110: 109
E111: 110
E112: 111
E113: 112
E114: 113
E115: 114
E116: 115
E117: 116
E118: 117
E119: 118
E120: 119
E121: 120
E122: 121
E123: 122
E124: 123
E125: 124
E126: 125
E127: 126
E128: 127
E129: 128
E130: 129
E131: 130
E132: 131
E133: 132
E134: 133
E135: 134
E136: 135
E137: 136
E138: 137
E139: 138
E140: 139
E141: 140
E142: 141
E143: 142
E144: 143
E145: 144
E146: 145
E147: 146
E148: 147
E149: 148
E150: 149
E151: 150
E152: 151
E153: 152
E154: 153
E155: 154
E156: 155
E157: 156
E158: 157
E159: 158
E160: 159
E161: 160
E162: 161
E163: 162
E164: 163
E165: 164
E166: 165
E167: 166
E168: 167
E169: 168
E170: 169
E171: 170
E172: 171
E173: 172
E174: 173
E175: 174
E176: 175
E177: 176
E178: 177
E179: 178
E180: 179
E181: 180
E182: 181
E183: 182
E184: 183
E185: 184
E186: 185
E187: 186
E188: 187
E189: 188
E190: 189
E191: 190
E192: 191
E193: 192
E194: 193
E195: 194
E196: 195
E197: 196
E198: 197
E199: 198
E200: 199
... 101 more rows

Sheet Derby
A1: Futurity | B1: Der | C1: Age Inct. | D1: BBR | E1: Draw | F1: Rider Name | G1: Horse Name | H1: c/o | I1: Time | J1: Final Time | K1: Placing | L1: Money Earned
E2: 1 | F2: Savannah Palmore | G2: Promise Me A Jet | I2: 15.811 | K2: 1st | L2: 220
E3: 2 | F3: Andrea Cline | G3: J Lo Fame | I3: 15.897 | K3: 2nd | L3: 144
E4: 3 | F4: Kyle Leleux | G4: A Streak of Scarlet | I4: 16.101 | K4: 3rd | L4: 88
E5: 4 | F5: Nisa Berry | G5: No Effort Makin Cash | I5: 16.272
E6: 5 | F6: Andrea Cline | G6: Blurry Bug Leo | I6: 17.258
E7: 6 | F7: Nisa Berry | G7: Code Name Fame | I7: 17.325
E8: 7 | F8: Cassidy Champlin | G8: Wood Bea French Girl | I8: NT16.198
E9: 8 | F9: Sophie Palmore | G9: Heavenbringsmoolah | I9: NT16.585
E10: 9 | F10: Hailey Lockwood | G10: Corona Share Of Fame | I10: nt16.822
E11: 10 | F11: Jade Crago | G11: Sophie So Sweet | I11: nt17.54
E12: 11 | F12: Taylor Shields | G12: Furys Princess | I12: nt9999
E13: 13
E14: 14
E15: 15
E16: 16
E17: 17 | J17: =IF(OR(H17=5,H17=10, H17=15, H17="BP",H17="SCR"),"NT",I17) -> 0
E18: 18 | J18: 0
E19: 19 | J19: 0
E20: 20 | J20: 0
E21: 21 | J21: 0
E22: 22 | J22: 0
E23: 23 | J23: 0
E24: 24 | J24: 0
E25: 25 | J25: 0
E26: 26 | J26: 0
E27: 27 | J27: 0
E28: 28 | J28: 0
E29: 29 | J29: 0
E30: 30 | J30: 0
E31: 31 | J31: 0
E32: 32 | J32: 0
E33: 33 | J33: 0
E34: 34 | J34: 0
E35: 35 | J35: 0
E36: 36 | J36: 0
E37: 37 | J37: 0
E38: 38 | J38: 0
E39: 39 | J39: 0
E40: 40 | J40: 0
E41: 41 | J41: 0
E42: 42 | J42: 0
E43: 43 | J43: 0
E44: 44 | J44: 0
E45: 45 | J45: 0
E46: 46 | J46: 0
E47: 47 | J47: 0
E48: 48 | J48: 0
E49: 49 | J49: 0
E50: 50 | J50: 0
E51: 51 | J51: 0
E52: 52 | J52: 0
E53: 53 | J53: 0
E54: 54 | J54: 0
E55: 55 | J55: 0
E56: 56 | J56: 0
E57: 57 | J57: 0
E58: 58 | J58: 0
E59: 59 | J59: 0
E60: 60 | J60: 0
E61: 61 | J61: 0
E62: 62 | J62: 0
E63: 63 | J63: 0
E64: 64 | J64: 0
E65: 65 | J65: 0
E66: 66 | J66: 0
E67: 67 | J67: 0
E68: 68 | J68: 0
E69: 69 | J69: 0
E70: 70 | J70: 0
E71: 71 | J71: 0
E72: 72 | J72: 0
E73: 73 | J73: 0
E74: 74 | J74: 0
E75: 75 | J75: 0
E76: 76 | J76: 0
E77: 77 | J77: 0
E78: 78 | J78: 0
E79: 79 | J79: 0
E80: 80 | J80: 0
E81: 81 | J81: =IF(OR(H81=5,H81=10, H81=15, H81="BP",H81="SCR"),"NT",I81) -> 0
E82: 82 | J82: 0
E83: 83 | J83: 0
E84: 84 | J84: 0
E85: 85 | J85: 0
E86: 86 | J86: 0
E87: 87 | J87: 0
E88: 88 | J88: 0
E89: 89 | J89: 0
E90: 90 | J90: 0
E91: 91 | J91: 0
E92: 92 | J92: 0
E93: 93 | J93: 0
E94: 94 | J94: 0
E95: 95 | J95: 0
E96: 96 | J96: 0
E97: 97 | J97: 0
E98: 98 | J98: 0
E99: 99 | J99: 0
E100: 100 | J100: 0
E101: 101 | J101: 0
E102: 102 | J102: 0
E103: 103 | J103: 0
E104: 104 | J104: 0
E105: 105 | J105: 0
E106: 106 | J106: 0
E107: 107 | J107: 0
E108: 108 | J108: 0
E109: 109 | J109: 0
E110: 110 | J110: 0
E111: 111 | J111: 0
E112: 112 | J112: 0
E113: 113 | J113: 0
E114: 114 | J114: 0
E115: 115 | J115: 0
E116: 116 | J116: 0
E117: 117 | J117: 0
E118: 118 | J118: 0
E119: 119 | J119: 0
E120: 120 | J120: 0
E121: 121 | J121: 0
E122: 122 | J122: 0
E123: 123 | J123: 0
E124: 124 | J124: 0
E125: 125 | J125: 0
E126: 126 | J126: 0
E127: 127 | J127: 0
E128: 128 | J128: 0
E129: 129 | J129: 0
E130: 130 | J130: 0
E131: 131 | J131: 0
E132: 132 | J132: 0
E133: 133 | J133: 0
E134: 134 | J134: 0
E135: 135 | J135: 0
E136: 136 | J136: 0
E137: 137 | J137: 0
E138: 138 | J138: 0
E139: 139 | J139: 0
E140: 140 | J140: 0
E141: 141 | J141: 0
E142: 142 | J142: 0
E143: 143 | J143: 0
E144: 144 | J144: 0
E145: 145 | J145: =IF(OR(H145=5,H145=10, H145=15, H145="BP",H145="SCR"),"NT",I145) -> 0
E146: 146 | J146: 0
E147: 147 | J147: 0
E148: 148 | J148: 0
E149: 149 | J149: 0
E150: 150 | J150: 0
E151: 151 | J151: 0
E152: 152 | J152: 0
E153: 153 | J153: 0
E154: 154 | J154: 0
E155: 155 | J155: 0
E156: 156 | J156: 0
E157: 157 | J157: 0
E158: 158 | J158: 0
E159: 159 | J159: 0
E160: 160 | J160: 0
E161: 161 | J161: 0
E162: 162 | J162: 0
E163: 163 | J163: 0
E164: 164 | J164: 0
E165: 165 | J165: 0
E166: 166 | J166: 0
E167: 167 | J167: 0
E168: 168 | J168: 0
E169: 169 | J169: 0
E170: 170 | J170: 0
E171: 171 | J171: 0
E172: 172 | J172: 0
E173: 173 | J173: 0
E174: 174 | J174: 0
E175: 175 | J175: 0
E176: 176 | J176: 0
E177: 177 | J177: 0
E178: 178 | J178: 0
E179: 179 | J179: 0
E180: 180 | J180: 0
E181: 181 | J181: 0
E182: 182 | J182: 0
E183: 183 | J183: 0
E184: 184 | J184: 0
E185: 185 | J185: 0
E186: 186 | J186: 0
E187: 187 | J187: 0
E188: 188 | J188: 0
E189: 189 | J189: 0
E190: 190 | J190: 0
E191: 191 | J191: 0
E192: 192 | J192: 0
E193: 193 | J193: 0
E194: 194 | J194: 0
E195: 195 | J195: 0
E196: 196 | J196: 0
E197: 197 | J197: 0
E198: 198 | J198: 0
E199: 199 | J199: 0
E200: 200 | J200: 0
... 100 more rows

Sheet Highstakes
A1: Futurity | B1: Der | C1: Age Inct. | D1: BBR | E1: Draw | F1: Rider Name | G1: Horse Name | H1: c/o | I1: Time | J1: Final Time | K1: Placing | L1: Money Earned
E2: 1 | F2: Nisa Berry | G2: VF Look Im Back | I2: 15.893 | L2: 288
E3: 2 | F3: Andrea Cline | G3: J Lo Fame | I3: 15.897 | L3: 192
E4: 3 | F4: Carissa Stoner | G4: Dash Ta Profits | I4: 16.697
E5: 4 | F5: Andrea Cline | G5: Blurry Bug Leo | I5: 17.258
E6: 5 | F6: DeAnn Morgan | G6: Colour Me Fast | I6: nt16.049
E7: 6 | F7: Laura Pearson | G7: Honky Tonk Cds | I7: NT99.999
E8: 7
E9: 8
E10: 9
E11: 10
E12: 11
E13: 12
E14: 13
E15: 14
E16: 15
E17: 16
E18: 17
E19: 18
E20: 19
E21: 20
E22: 21
E23: 22
E24: 23
E25: 24
E26: 25
E27: 26
E28: 27
E29: 28
E30: 29
E31: 30
E32: 31
E33: 32
E34: 33
E35: 34
E36: 35
E37: 36
E38: 37
E39: 38
E40: 39 | J40: =IF(OR(H40=5,H40=10, H40=15, H40="BP",H40="SCR"),"NT",I40) -> 0
E41: 40 | J41: 0
E42: 41 | J42: 0
E43: 42 | J43: 0
E44: 43 | J44: 0
E45: 44 | J45: 0
E46: 45 | J46: 0
E47: 46 | J47: 0
E48: 47 | J48: 0
E49: 48 | J49: 0
E50: 49 | J50: 0
E51: 50 | J51: 0
E52: 51 | J52: 0
E53: 52 | J53: 0
E54: 53 | J54: 0
E55: 54 | J55: 0
E56: 55 | J56: 0
E57: 56 | J57: 0
E58: 57 | J58: 0
E59: 58 | J59: 0
E60: 59 | J60: 0
E61: 60 | J61: 0
E62: 61 | J62: 0
E63: 62 | J63: 0
E64: 63 | J64: 0
E65: 64 | J65: 0
E66: 65 | J66: 0
E67: 66 | J67: 0
E68: 67 | J68: 0
E69: 68 | J69: 0
E70: 69 | J70: 0
E71: 70 | J71: 0
E72: 71 | J72: 0
E73: 72 | J73: 0
E74: 73 | J74: 0
E75: 74 | J75: 0
E76: 75 | J76: 0
E77: 76 | J77: 0
E78: 77 | J78: 0
E79: 78 | J79: 0
E80: 79 | J80: 0
E81: 80 | J81: 0
E82: 81 | J82: 0
E83: 82 | J83: 0
E84: 83 | J84: 0
E85: 84 | J85: 0
E86: 85 | J86: 0
E87: 86 | J87: 0
E88: 87 | J88: 0
E89: 88 | J89: 0
E90: 89 | J90: 0
E91: 90 | J91: 0
E92: 91 | J92: 0
E93: 92 | J93: 0
E94: 93 | J94: 0
E95: 94 | J95: 0
E96: 95 | J96: 0
E97: 96 | J97: 0
E98: 97 | J98: 0
E99: 98 | J99: 0
E100: 99 | J100: 0
E101: 100 | J101: 0
E102: 101 | J102: 0
E103: 102 | J103: 0
E104: 103 | J104: =IF(OR(H104=5,H104=10, H104=15, H104="BP",H104="SCR"),"NT",I104) -> 0
E105: 104 | J105: 0
E106: 105 | J106: 0
E107: 106 | J107: 0
E108: 107 | J108: 0
E109: 108 | J109: 0
E110: 109 | J110: 0
E111: 110 | J111: 0
E112: 111 | J112: 0
E113: 112 | J113: 0
E114: 113 | J114: 0
E115: 114 | J115: 0
E116: 115 | J116: 0
E117: 116 | J117: 0
E118: 117 | J118: 0
E119: 118 | J119: 0
E120: 119 | J120: 0
E121: 120 | J121: 0
E122: 121 | J122: 0
E123: 122 | J123: 0
E124: 123 | J124: 0
E125: 124 | J125: 0
E126: 125 | J126: 0
E127: 126 | J127: 0
E128: 127 | J128: 0
E129: 128 | J129: 0
E130: 129 | J130: 0
E131: 130 | J131: 0
E132: 131 | J132: 0
E133: 132 | J133: 0
E134: 133 | J134: 0
E135: 134 | J135: 0
E136: 135 | J136: 0
E137: 136 | J137: 0
E138: 137 | J138: 0
E139: 138 | J139: 0
E140: 139 | J140: 0
E141: 140 | J141: 0
E142: 141 | J142: 0
E143: 142 | J143: 0
E144: 143 | J144: 0
E145: 144 | J145: 0
E146: 145 | J146: 0
E147: 146 | J147: 0
E148: 147 | J148: 0
E149: 148 | J149: 0
E150: 149 | J150: 0
E151: 150 | J151: 0
E152: 151 | J152: 0
E153: 152 | J153: 0
E154: 153 | J154: 0
E155: 154 | J155: 0
E156: 155 | J156: 0
E157: 156 | J157: 0
E158: 157 | J158: 0
E159: 158 | J159: 0
E160: 159 | J160: 0
E161: 160 | J161: 0
E162: 161 | J162: 0
E163: 162 | J163: 0
E164: 163 | J164: 0
E165: 164 | J165: 0
E166: 165 | J166: 0
E167: 166 | J167: 0
E168: 167 | J168: =IF(OR(H168=5,H168=10, H168=15, H168="BP",H168="SCR"),"NT",I168) -> 0
E169: 168 | J169: 0
E170: 169 | J170: 0
E171: 170 | J171: 0
E172: 171 | J172: 0
E173: 172 | J173: 0
E174: 173 | J174: 0
E175: 174 | J175: 0
E176: 175 | J176: 0
E177: 176 | J177: 0
E178: 177 | J178: 0
E179: 178 | J179: 0
E180: 179 | J180: 0
E181: 180 | J181: 0
E182: 181 | J182: 0
E183: 182 | J183: 0
E184: 183 | J184: 0
E185: 184 | J185: 0
E186: 185 | J186: 0
E187: 186 | J187: 0
E188: 187 | J188: 0
E189: 188 | J189: 0
E190: 189 | J190: 0
E191: 190 | J191: 0
E192: 191 | J192: 0
E193: 192 | J193: 0
E194: 193 | J194: 0
E195: 194 | J195: 0
E196: 195 | J196: 0
E197: 196 | J197: 0
E198: 197 | J198: 0
E199: 198 | J199: 0
E200: 199 | J200: 0
... 101 more rows

Sheet Futurity
A1: Futurity | B1: Der | C1: Age Inct. | D1: BBR | E1: Draw | F1: Rider Name | G1: Horse Name | H1: c/o | I1: Time | J1: Final Time | K1: Placing | L1: Money Earned
E2: 1 | F2: Kristen Hendewerk | G2: Tennessee Fuel | I2: 16.2 | K2: 1D 1st | L2: 264
E3: 2 | F3: Kyle Leleux | G3: Heavens Sizzler | I3: 16.235 | K3: 1D 2nd | L3: 158.4
E4: 3 | F4: Krista Whitley | G4: Fabulace Fame | I4: 16.286 | K4: 1D 3rd | L4: 105.6
E5: 4 | F5: Hailey Lockwood | G5: Haydaysdashinfashion | I5: 16.304
E6: 5 | F6: Lauren Strough | G6: Dineros Spare Change | I6: 16.409
E7: 6 | F7: Kylee Schribner | G7: Firewater Cartel | I7: 16.448
E8: 7 | F8: Stevi Hillman | G8: DTF Texas Moon | I8: 16.545
E9: 8 | F9: Lauren Strough | G9: Sunny C Windy Anna | I9: 16.578
E10: 9 | F10: Nisa Berry | G10: NB Keepin Time | I10: 16.626
E11: 10 | F11: Jade Crago | G11: High Road Ta Fame | I11: 16.815
E12: 11 | F12: Scamper Cole | G12: VF Eddie Flashed Me | I12: 16.897
E13: 12 | F13: Tori Volk | G13: CN Holy Cow | I13: 16.927
E14: 13 | F14: DeAnn Morgan | G14: Paid For A Fling | I14: 16.952
E15: 14 | F15: Andrea Cline | G15: Ladies Pink Cash | I15: 17.027
E16: 15 | F16: Andrea Cline | G16: Furociousladychaser | I16: 17.19
E17: 16 | F17: Wyatt Paul | G17: Hurrican Harvey | I17: 17.372 | K17: 2D 1st | L17: 176
E18: 17 | F18: Scamper Cole | G18: Ima Epic Hustler | I18: 17.706 | K18: 2D 2nd | L18: 132
E19: 18 | F19: Andrea Cline | G19: Hey Big Momma | I19: 18.013 | K19: 2D 3rd | L19: 70.4
E20: 19 | F20: Courtney Moose | G20: HQH Runnaway Toast | I20: 18.409
E21: 20 | F21: Geneva Kelly | G21: Kick Some Dust Up | I21: 21.954
E22: 21 | F22: Davie King | G22: Tell Me I am Sweet | I22: NT16.350
E23: 22 | F23: Tricia Aldridge | G23: Sinoloa Stinson | I23: NT17.428
E24: 23
E25: 24
E26: 25
E27: 25
E28: 26
E29: 27
E30: 28
E31: 29
E32: 30
E33: 31 | J33: =IF(OR(H33=5,H33=10, H33=15, H33="BP",H33="SCR"),"NT",I33) -> 0
E34: 32 | J34: 0
E35: 33 | J35: 0
E36: 34 | J36: 0
E37: 35 | J37: 0
E38: 36 | J38: 0
E39: 37 | J39: 0
E40: 38 | J40: 0
E41: 39 | J41: 0
E42: 40 | J42: 0
E43: 41 | J43: 0
E44: 42 | J44: 0
E45: 43 | J45: 0
E46: 44 | J46: 0
E47: 45 | J47: 0
E48: 46 | J48: 0
E49: 47 | J49: 0
E50: 48 | J50: 0
E51: 49 | J51: 0
E52: 50 | J52: 0
E53: 51 | J53: 0
E54: 52 | J54: 0
E55: 53 | J55: 0
E56: 54 | J56: 0
E57: 55 | J57: 0
E58: 56 | J58: 0
E59: 57 | J59: 0
E60: 58 | J60: 0
E61: 59 | J61: 0
E62: 60 | J62: 0
E63: 61 | J63: 0
E64: 62 | J64: 0
E65: 63 | J65: 0
E66: 64 | J66: 0
E67: 65 | J67: 0
E68: 66 | J68: 0
E69: 67 | J69: 0
E70: 68 | J70: 0
E71: 69 | J71: 0
E72: 70 | J72: 0
E73: 71 | J73: 0
E74: 72 | J74: 0
E75: 73 | J75: 0
E76: 74 | J76: 0
E77: 75 | J77: 0
E78: 76 | J78: 0
E79: 77 | J79: 0
E80: 78 | J80: 0
E81: 79 | J81: 0
E82: 80 | J82: 0
E83: 81 | J83: 0
E84: 82 | J84: 0
E85: 83 | J85: 0
E86: 84 | J86: 0
E87: 85 | J87: 0
E88: 86 | J88: 0
E89: 87 | J89: 0
E90: 88 | J90: 0
E91: 89 | J91: 0
E92: 90 | J92: 0
E93: 91 | J93: 0
E94: 92 | J94: 0
E95: 93 | J95: 0
E96: 94 | J96: 0
E97: 95 | J97: =IF(OR(H97=5,H97=10, H97=15, H97="BP",H97="SCR"),"NT",I97) -> 0
E98: 96 | J98: 0
E99: 97 | J99: 0
E100: 98 | J100: 0
E101: 99 | J101: 0
E102: 100 | J102: 0
E103: 101 | J103: 0
E104: 102 | J104: 0
E105: 103 | J105: 0
E106: 104 | J106: 0
E107: 105 | J107: 0
E108: 106 | J108: 0
E109: 107 | J109: 0
E110: 108 | J110: 0
E111: 109 | J111: 0
E112: 110 | J112: 0
E113: 111 | J113: 0
E114: 112 | J114: 0
E115: 113 | J115: 0
E116: 114 | J116: 0
E117: 115 | J117: 0
E118: 116 | J118: 0
E119: 117 | J119: 0
E120: 118 | J120: 0
E121: 119 | J121: 0
E122: 120 | J122: 0
E123: 121 | J123: 0
E124: 122 | J124: 0
E125: 123 | J125: 0
E126: 124 | J126: 0
E127: 125 | J127: 0
E128: 126 | J128: 0
E129: 127 | J129: 0
E130: 128 | J130: 0
E131: 129 | J131: 0
E132: 130 | J132: 0
E133: 131 | J133: 0
E134: 132 | J134: 0
E135: 133 | J135: 0
E136: 134 | J136: 0
E137: 135 | J137: 0
E138: 136 | J138: 0
E139: 137 | J139: 0
E140: 138 | J140: 0
E141: 139 | J141: 0
E142: 140 | J142: 0
E143: 141 | J143: 0
E144: 142 | J144: 0
E145: 143 | J145: 0
E146: 144 | J146: 0
E147: 145 | J147: 0
E148: 146 | J148: 0
E149: 147 | J149: 0
E150: 148 | J150: 0
E151: 149 | J151: 0
E152: 150 | J152: 0
E153: 151 | J153: 0
E154: 152 | J154: 0
E155: 153 | J155: 0
E156: 154 | J156: 0
E157: 155 | J157: 0
E158: 156 | J158: 0
E159: 157 | J159: 0
E160: 158 | J160: 0
E161: 159 | J161: =IF(OR(H161=5,H161=10, H161=15, H161="BP",H161="SCR"),"NT",I161) -> 0
E162: 160 | J162: 0
E163: 161 | J163: 0
E164: 162 | J164: 0
E165: 163 | J165: 0
E166: 164 | J166: 0
E167: 165 | J167: 0
E168: 166 | J168: 0
E169: 167 | J169: 0
E170: 168 | J170: 0
E171: 169 | J171: 0
E172: 170 | J172: 0
E173: 171 | J173: 0
E174: 172 | J174: 0
E175: 173 | J175: 0
E176: 174 | J176: 0
E177: 175 | J177: 0
E178: 176 | J178: 0
E179: 177 | J179: 0
E180: 178 | J180: 0
E181: 179 | J181: 0
E182: 180 | J182: 0
E183: 181 | J183: 0
E184: 182 | J184: 0
E185: 183 | J185: 0
E186: 184 | J186: 0
E187: 185 | J187: 0
E188: 186 | J188: 0
E189: 187 | J189: 0
E190: 188 | J190: 0
E191: 189 | J191: 0
E192: 190 | J192: 0
E193: 191 | J193: 0
E194: 192 | J194: 0
E195: 193 | J195: 0
E196: 194 | J196: 0
E197: 195 | J197: 0
E198: 196 | J198: 0
E199: 197 | J199: 0
E200: 198 | J200: 0
... 102 more rows

Sheet 12 & Under (hidden)
A1: Futurity | B1: Der | C1: Age Inct. | D1: R/O | E1: Draw | F1: Rider Name | G1: Horse Name | H1: Time | I1: Final Time | J1: Placing | K1: Money Earned
E33: 32
E34: 33
E35: 34
E36: 35
E37: 36
E38: 37
E39: 38
E40: 39
E41: 40
E42: 41
E43: 42
E44: 43
E45: 44
E46: 45
E47: 46
E48: 47
E49: 48
E50: 49
E51: 50
E52: 51
E53: 52
E54: 53
E55: 54
E56: 55
E57: 56
E58: 57
E59: 58
E60: 59
E61: 60
E62: 61
E63: 62
E64: 63
E65: 64
E66: 65
E67: 66
E68: 67
E69: 68
E70: 69
E71: 70
E72: 71
E73: 72
E74: 73
E75: 74
E76: 75
E77: 76
E78: 77
E79: 78
E80: 79
E81: 80
E82: 81
E83: 82
E84: 83
E85: 84
E86: 85
E87: 86
E88: 87
E89: 88
E90: 89
E91: 90
E92: 91
E93: 92
E94: 93
E95: 94
E96: 95
E97: 96
E98: 97
E99: 98
E100: 99
E101: 100
E102: 101
E103: 102
E104: 103
E105: 104
E106: 105
E107: 106
E108: 107
E109: 108
E110: 109
E111: 110
E112: 111
E113: 112
E114: 113
E115: 114
E116: 115
E117: 116
E118: 117
E119: 118
E120: 119
E121: 120
E122: 121
E123: 122
E124: 123
E125: 124
E126: 125
E127: 126
E128: 127
E129: 128
E130: 129
E131: 130
E132: 131
E133: 132
E134: 133
E135: 134
E136: 135
E137: 136
E138: 137
E139: 138
E140: 139
E141: 140
E142: 141
E143: 142
E144: 143
E145: 144
E146: 145
E147: 146
E148: 147
E149: 148
E150: 149
E151: 150
E152: 151
E153: 152
E154: 153
E155: 154
E156: 155
E157: 156
E158: 157
E159: 158
E160: 159
E161: 160
E162: 161
E163: 162
E164: 163
E165: 164
E166: 165
E167: 166
E168: 167
E169: 168
E170: 169
E171: 170
E172: 171
E173: 172
E174: 173
E175: 174
E176: 175
E177: 176
E178: 177
E179: 178
E180: 179
E181: 180
E182: 181
E183: 182
E184: 183
E185: 184
E186: 185
E187: 186
E188: 187
E189: 188
E190: 189
E191: 190
E192: 191
E193: 192
E194: 193
E195: 194
E196: 195
E197: 196
E198: 197
E199: 198
E200: 199
E201: 200
E202: 201
E203: 202
E204: 203
E205: 204
E206: 205
E207: 206
E208: 207
E209: 208
E210: 209
E211: 210
E212: 211
E213: 212
E214: 213
E215: 214
E216: 215
E217: 216
E218: 217
E219: 218
E220: 219
E221: 220
E222: 221
E223: 222
E224: 223
E225: 224
E226: 225
E227: 226
E228: 227
E229: 228
E230: 229
E231: 230
... 70 more rows

Sheet Future champs
A1: Draw | B1: Rider Name | C1: Horse Name | D1: Pen | E1: Time | F1: Final Time | G1: Placing | H1: Money Earned
A2: 1 | B2: Reata Worthington | C2: Rooster
A3: 2 | B3: Sawyer Wilkerson | C3: Sadie
A4: 3 | B4: Breelyn Black | C4: Poptart
A5: 4 | B5: Bryson Rawson | C5: June Bug
A6: 5 | B6: Tinley Rae Cobb
A7: 6 | B7: Swayze Jordan | C7: Pistol
A8: 7 | B8: Coralee Williams | C8: Cooper
A9: 8 | B9: Josie Teague | C9: Chico
A10: 9 | B10: Wyatt Williams | C10: Peanut
A11: 10 | B11: Kaley Steffen | C11: Cookie | F11: =IF(OR(D11=5,D11=10, D11=15, D11="BP",D11="SCR"),"NT",E11) -> 0
A12: 11 | B12: Kimber Steffen | C12: Katie | F12: 0
A13: 12 | B13: Bella Blaylock | C13: Dolly | F13: 0
A14: 13 | B14: Zoey Suhn | F14: 0
A15: 14 | B15: Josie Teague | C15: Mimi | F15: 0
A16: 15 | B16: Lawson Kimball | C16: Blaze | F16: 0
A17: 16 | F17: 0
A18: 17 | F18: 0
A19: 18 | F19: 0
A20: 19 | F20: 0
A21: 20 | F21: 0

Sheet Average
A1: Parker County Arena
A2: Open
A3: 4 Yr Fut | B3: 5 Yr Fut | C3: Der | D3: Age Inct. | E3: Am | F3: Carry | G3: T/C | H3: F/F | I3: Mem | J3: Nom | K3: Av | L3: BBR | M3: WPRA | N3: Draw | O3: Owner Name | P3: Rider Name | Q3: Horse Name | R3: Pen | S3: Time 1 | T3: Final Time 1 | U3: Pen | V3: Time 2 | W3: Final Time 2 | X3: Total Time | Y3: Average Time | Z3: Placing | AA3: Money Earned | AC3: D Placing | AE3: Split
N4: 1 | T4: =IF(OR(R4=5,R4=10, R4=15, R4="BP",R4="SCR"),"NT",S4) -> 0 | W4: =IF(OR(U4=5,U4=10, U4=15, U4="BP",U4="SCR"),"NT",V4) -> 0 | X4: =(T4+W4) -> 0 | Y4: =(T4+W4)/2 -> 0 | AC4: 1D
N5: 2 | T5: 0 | W5: 0 | X5: 0 | Y5: 0 | AC5: 2D | AD5: =$AD$4+$AE$5 -> 0.5 | AE5: 0.5
N6: 3 | T6: 0 | W6: 0 | X6: 0 | Y6: 0 | AC6: 3D | AD6: =$AD$5+$AE$6 -> 1 | AE6: 0.5
N7: 4 | T7: 0 | W7: 0 | X7: 0 | Y7: 0 | AC7: 4D | AD7: =$AD$6+$AE$7 -> 1.5 | AE7: 0.5
N8: 5 | T8: 0 | W8: 0 | X8: 0 | Y8: 0 | AC8: 5D | AD8: =$AD$7+$AE$8 -> 2 | AE8: 0.5
N9: 6 | T9: 0 | W9: 0 | X9: 0 | Y9: 0
N10: 7 | T10: 0 | W10: 0 | X10: 0 | Y10: 0 | AC10: # Entered
N11: 8 | T11: 0 | W11: 0 | X11: 0 | Y11: 0 | AC11: =COUNTA(P4:P503) -> 0
N12: 9 | T12: 0 | W12: 0 | X12: 0 | Y12: 0
N13: 10 | T13: 0 | W13: 0 | X13: 0 | Y13: 0
N14: 11 | T14: 0 | W14: 0 | X14: 0 | Y14: 0
N15: 12 | T15: 0 | W15: 0 | X15: 0 | Y15: 0
N16: 13 | T16: 0 | W16: 0 | X16: 0 | Y16: 0
N17: 14 | T17: =IF(OR(R17=5,R17=10, R17=15, R17="BP",R17="SCR"),"NT",S17) -> 0 | W17: =IF(OR(U17=5,U17=10, U17=15, U17="BP",U17="SCR"),"NT",V17) -> 0 | X17: =(T17+W17) -> 0 | Y17: =(T17+W17)/2 -> 0
N18: 15 | T18: 0 | W18: 0 | X18: 0 | Y18: 0
N19: 16 | T19: 0 | W19: 0 | X19: 0 | Y19: 0
N20: 17 | T20: 0 | W20: 0 | X20: 0 | Y20: 0
N21: 18 | T21: 0 | W21: 0 | X21: 0 | Y21: 0
N22: 19 | T22: 0 | W22: 0 | X22: 0 | Y22: 0
N23: 20 | T23: 0 | W23: 0 | X23: 0 | Y23: 0
N24: 21 | T24: 0 | W24: 0 | X24: 0 | Y24: 0
N25: 22 | T25: 0 | W25: 0 | X25: 0 | Y25: 0
N26: 23 | T26: 0 | W26: 0 | X26: 0 | Y26: 0
N27: 24 | T27: 0 | W27: 0 | X27: 0 | Y27: 0
N28: 25 | T28: 0 | W28: 0 | X28: 0 | Y28: 0
N29: 26 | T29: 0 | W29: 0 | X29: 0 | Y29: 0
N30: 27 | T30: 0 | W30: 0 | X30: 0 | Y30: 0
N31: 28 | T31: 0 | W31: 0 | X31: 0 | Y31: 0
N32: 29 | T32: 0 | W32: 0 | X32: 0 | Y32: 0
N33: 30 | T33: 0 | W33: 0 | X33: 0 | Y33: 0
N34: 31 | T34: 0 | W34: 0 | X34: 0 | Y34: 0
N35: 32 | T35: 0 | W35: 0 | X35: 0 | Y35: 0
N36: 33 | T36: 0 | W36: 0 | X36: 0 | Y36: 0
N37: 34 | T37: 0 | W37: 0 | X37: 0 | Y37: 0
N38: 35 | T38: 0 | W38: 0 | X38: 0 | Y38: 0
N39: 36 | T39: 0 | W39: 0 | X39: 0 | Y39: 0
N40: 37 | T40: 0 | W40: 0 | X40: 0 | Y40: 0
N41: 38 | T41: 0 | W41: 0 | X41: 0 | Y41: 0
N42: 39 | T42: 0 | W42: 0 | X42: 0 | Y42: 0
N43: 40 | T43: 0 | W43: 0 | X43: 0 | Y43: 0
N44: 41 | T44: 0 | W44: 0 | X44: 0 | Y44: 0
N45: 42 | T45: 0 | W45: 0 | X45: 0 | Y45: 0
N46: 43 | T46: 0 | W46: 0 | X46: 0 | Y46: 0
N47: 44 | T47: 0 | W47: 0 | X47: 0 | Y47: 0
N48: 45 | T48: 0 | W48: 0 | X48: 0 | Y48: 0
N49: 46 | T49: 0 | W49: 0 | X49: 0 | Y49: 0
N50: 47 | T50: 0 | W50: 0 | X50: 0 | Y50: 0
N51: 48 | T51: 0 | W51: 0 | X51: 0 | Y51: 0
N52: 49 | T52: 0 | W52: 0 | X52: 0 | Y52: 0
N53: 50 | T53: 0 | W53: 0 | X53: 0 | Y53: 0
N54: 51 | T54: 0 | W54: 0 | X54: 0 | Y54: 0
N55: 52 | T55: 0 | W55: 0 | X55: 0 | Y55: 0
N56: 53 | T56: 0 | W56: 0 | X56: 0 | Y56: 0
N57: 54 | T57: 0 | W57: 0 | X57: 0 | Y57: 0
N58: 55 | T58: 0 | W58: 0 | X58: 0 | Y58: 0
N59: 56 | T59: 0 | W59: 0 | X59: 0 | Y59: 0
N60: 57 | T60: 0 | W60: 0 | X60: 0 | Y60: 0
N61: 58 | T61: 0 | W61: 0 | X61: 0 | Y61: 0
N62: 59 | T62: 0 | W62: 0 | X62: 0 | Y62: 0
N63: 60 | T63: 0 | W63: 0 | X63: 0 | Y63: 0
N64: 61 | T64: 0 | W64: 0 | X64: 0 | Y64: 0
N65: 62 | T65: 0 | W65: 0 | X65: 0 | Y65: 0
N66: 63 | T66: 0 | W66: 0 | X66: 0 | Y66: 0
N67: 64 | T67: 0 | W67: 0 | X67: 0 | Y67: 0
N68: 65 | T68: 0 | W68: 0 | X68: 0 | Y68: 0
N69: 66 | T69: =IF(OR(R69=5,R69=10, R69=15, R69="BP",R69="SCR"),"NT",S69) -> 0 | W69: =IF(OR(U69=5,U69=10, U69=15, U69="BP",U69="SCR"),"NT",V69) -> 0 | X69: =(T69+W69) -> 0 | Y69: =(T69+W69)/2 -> 0
N70: 67 | T70: 0 | W70: 0 | X70: 0 | Y70: 0
N71: 68 | T71: 0 | W71: 0 | X71: 0 | Y71: 0
N72: 69 | T72: 0 | W72: 0 | X72: 0 | Y72: 0
N73: 70 | T73: 0 | W73: 0 | X73: 0 | Y73: 0
N74: 71 | T74: 0 | W74: 0 | X74: 0 | Y74: 0
N75: 72 | T75: 0 | W75: 0 | X75: 0 | Y75: 0
N76: 73 | T76: 0 | W76: 0 | X76: 0 | Y76: 0
N77: 74 | T77: 0 | W77: 0 | X77: 0 | Y77: 0
N78: 75 | T78: 0 | W78: 0 | X78: 0 | Y78: 0
N79: 76 | T79: 0 | W79: 0 | X79: 0 | Y79: 0
N80: 77 | T80: 0 | W80: 0 | X80: 0 | Y80: 0
N81: 78 | T81: 0 | W81: 0 | X81: 0 | Y81: 0
N82: 79 | T82: 0 | W82: 0 | X82: 0 | Y82: 0
N83: 80 | T83: 0 | W83: 0 | X83: 0 | Y83: 0
N84: 81 | T84: 0 | W84: 0 | X84: 0 | Y84: 0
N85: 82 | T85: 0 | W85: 0 | X85: 0 | Y85: 0
N86: 83 | T86: 0 | W86: 0 | X86: 0 | Y86: 0
N87: 84 | T87: 0 | W87: 0 | X87: 0 | Y87: 0
N88: 85 | T88: 0 | W88: 0 | X88: 0 | Y88: 0
N89: 86 | T89: 0 | W89: 0 | X89: 0 | Y89: 0
N90: 87 | T90: 0 | W90: 0 | X90: 0 | Y90: 0
N91: 88 | T91: 0 | W91: 0 | X91: 0 | Y91: 0
N92: 89 | T92: 0 | W92: 0 | X92: 0 | Y92: 0
N93: 90 | T93: 0 | W93: 0 | X93: 0 | Y93: 0
N94: 91 | T94: 0 | W94: 0 | X94: 0 | Y94: 0
N95: 92 | T95: 0 | W95: 0 | X95: 0 | Y95: 0
N96: 93 | T96: 0 | W96: 0 | X96: 0 | Y96: 0
N97: 94 | T97: 0 | W97: 0 | X97: 0 | Y97: 0
N98: 95 | T98: 0 | W98: 0 | X98: 0 | Y98: 0
N99: 96 | T99: 0 | W99: 0 | X99: 0 | Y99: 0
N100: 97 | T100: 0 | W100: 0 | X100: 0 | Y100: 0
N101: 98 | T101: 0 | W101: 0 | X101: 0 | Y101: 0
N102: 99 | T102: 0 | W102: 0 | X102: 0 | Y102: 0
N103: 100 | T103: 0 | W103: 0 | X103: 0 | Y103: 0
N104: 101 | T104: 0 | W104: 0 | X104: 0 | Y104: 0
N105: 102 | T105: 0 | W105: 0 | X105: 0 | Y105: 0
N106: 103 | T106: 0 | W106: 0 | X106: 0 | Y106: 0
N107: 104 | T107: 0 | W107: 0 | X107: 0 | Y107: 0
N108: 105 | T108: 0 | W108: 0 | X108: 0 | Y108: 0
N109: 106 | T109: 0 | W109: 0 | X109: 0 | Y109: 0
N110: 107 | T110: 0 | W110: 0 | X110: 0 | Y110: 0
N111: 108 | T111: 0 | W111: 0 | X111: 0 | Y111: 0
N112: 109 | T112: 0 | W112: 0 | X112: 0 | Y112: 0
N113: 110 | T113: 0 | W113: 0 | X113: 0 | Y113: 0
N114: 111 | T114: 0 | W114: 0 | X114: 0 | Y114: 0
N115: 112 | T115: 0 | W115: 0 | X115: 0 | Y115: 0
N116: 113 | T116: 0 | W116: 0 | X116: 0 | Y116: 0
N117: 114 | T117: 0 | W117: 0 | X117: 0 | Y117: 0
N118: 115 | T118: 0 | W118: 0 | X118: 0 | Y118: 0
N119: 116 | T119: 0 | W119: 0 | X119: 0 | Y119: 0
N120: 117 | T120: 0 | W120: 0 | X120: 0 | Y120: 0
N121: 118 | T121: 0 | W121: 0 | X121: 0 | Y121: 0
N122: 119 | T122: 0 | W122: 0 | X122: 0 | Y122: 0
N123: 120 | T123: 0 | W123: 0 | X123: 0 | Y123: 0
N124: 121 | T124: 0 | W124: 0 | X124: 0 | Y124: 0
N125: 122 | T125: 0 | W125: 0 | X125: 0 | Y125: 0
N126: 123 | T126: 0 | W126: 0 | X126: 0 | Y126: 0
N127: 124 | T127: 0 | W127: 0 | X127: 0 | Y127: 0
N128: 125 | T128: 0 | W128: 0 | X128: 0 | Y128: 0
N129: 126 | T129: 0 | W129: 0 | X129: 0 | Y129: 0
N130: 127 | T130: 0 | W130: 0 | X130: 0 | Y130: 0
N131: 128 | T131: 0 | W131: 0 | X131: 0 | Y131: 0
N132: 129 | T132: 0 | W132: 0 | X132: 0 | Y132: 0
N133: 130 | T133: =IF(OR(R133=5,R133=10, R133=15, R133="BP",R133="SCR"),"NT",S133) -> 0 | W133: =IF(OR(U133=5,U133=10, U133=15, U133="BP",U133="SCR"),"NT",V133) -> 0 | X133: =(T133+W133) -> 0 | Y133: =(T133+W133)/2 -> 0
N134: 131 | T134: 0 | W134: 0 | X134: 0 | Y134: 0
N135: 132 | T135: 0 | W135: 0 | X135: 0 | Y135: 0
N136: 133 | T136: 0 | W136: 0 | X136: 0 | Y136: 0
N137: 134 | T137: 0 | W137: 0 | X137: 0 | Y137: 0
N138: 135 | T138: 0 | W138: 0 | X138: 0 | Y138: 0
N139: 136 | T139: 0 | W139: 0 | X139: 0 | Y139: 0
N140: 137 | T140: 0 | W140: 0 | X140: 0 | Y140: 0
N141: 138 | T141: 0 | W141: 0 | X141: 0 | Y141: 0
N142: 139 | T142: 0 | W142: 0 | X142: 0 | Y142: 0
N143: 140 | T143: 0 | W143: 0 | X143: 0 | Y143: 0
N144: 141 | T144: 0 | W144: 0 | X144: 0 | Y144: 0
N145: 142 | T145: 0 | W145: 0 | X145: 0 | Y145: 0
N146: 143 | T146: 0 | W146: 0 | X146: 0 | Y146: 0
N147: 144 | T147: 0 | W147: 0 | X147: 0 | Y147: 0
N148: 145 | T148: 0 | W148: 0 | X148: 0 | Y148: 0
N149: 146 | T149: 0 | W149: 0 | X149: 0 | Y149: 0
N150: 147 | T150: 0 | W150: 0 | X150: 0 | Y150: 0
N151: 148 | T151: 0 | W151: 0 | X151: 0 | Y151: 0
N152: 149 | T152: 0 | W152: 0 | X152: 0 | Y152: 0
N153: 150 | T153: 0 | W153: 0 | X153: 0 | Y153: 0
N154: 151 | T154: 0 | W154: 0 | X154: 0 | Y154: 0
N155: 152 | T155: 0 | W155: 0 | X155: 0 | Y155: 0
N156: 153 | T156: 0 | W156: 0 | X156: 0 | Y156: 0
N157: 154 | T157: 0 | W157: 0 | X157: 0 | Y157: 0
N158: 155 | T158: 0 | W158: 0 | X158: 0 | Y158: 0
N159: 156 | T159: 0 | W159: 0 | X159: 0 | Y159: 0
N160: 157 | T160: 0 | W160: 0 | X160: 0 | Y160: 0
N161: 158 | T161: 0 | W161: 0 | X161: 0 | Y161: 0
N162: 159 | T162: 0 | W162: 0 | X162: 0 | Y162: 0
N163: 160 | T163: 0 | W163: 0 | X163: 0 | Y163: 0
N164: 161 | T164: 0 | W164: 0 | X164: 0 | Y164: 0
N165: 162 | T165: 0 | W165: 0 | X165: 0 | Y165: 0
N166: 163 | T166: 0 | W166: 0 | X166: 0 | Y166: 0
N167: 164 | T167: 0 | W167: 0 | X167: 0 | Y167: 0
N168: 165 | T168: 0 | W168: 0 | X168: 0 | Y168: 0
N169: 166 | T169: 0 | W169: 0 | X169: 0 | Y169: 0
N170: 167 | T170: 0 | W170: 0 | X170: 0 | Y170: 0
N171: 168 | T171: 0 | W171: 0 | X171: 0 | Y171: 0
N172: 169 | T172: 0 | W172: 0 | X172: 0 | Y172: 0
N173: 170 | T173: 0 | W173: 0 | X173: 0 | Y173: 0
N174: 171 | T174: 0 | W174: 0 | X174: 0 | Y174: 0
N175: 172 | T175: 0 | W175: 0 | X175: 0 | Y175: 0
N176: 173 | T176: 0 | W176: 0 | X176: 0 | Y176: 0
N177: 174 | T177: 0 | W177: 0 | X177: 0 | Y177: 0
N178: 175 | T178: 0 | W178: 0 | X178: 0 | Y178: 0
N179: 176 | T179: 0 | W179: 0 | X179: 0 | Y179: 0
N180: 177 | T180: 0 | W180: 0 | X180: 0 | Y180: 0
N181: 178 | T181: 0 | W181: 0 | X181: 0 | Y181: 0
N182: 179 | T182: 0 | W182: 0 | X182: 0 | Y182: 0
N183: 180 | T183: 0 | W183: 0 | X183: 0 | Y183: 0
N184: 181 | T184: 0 | W184: 0 | X184: 0 | Y184: 0
N185: 182 | T185: 0 | W185: 0 | X185: 0 | Y185: 0
N186: 183 | T186: 0 | W186: 0 | X186: 0 | Y186: 0
N187: 184 | T187: 0 | W187: 0 | X187: 0 | Y187: 0
N188: 185 | T188: 0 | W188: 0 | X188: 0 | Y188: 0
N189: 186 | T189: 0 | W189: 0 | X189: 0 | Y189: 0
N190: 187 | T190: 0 | W190: 0 | X190: 0 | Y190: 0
N191: 188 | T191: 0 | W191: 0 | X191: 0 | Y191: 0
N192: 189 | T192: 0 | W192: 0 | X192: 0 | Y192: 0
N193: 190 | T193: 0 | W193: 0 | X193: 0 | Y193: 0
N194: 191 | T194: 0 | W194: 0 | X194: 0 | Y194: 0
N195: 192 | T195: 0 | W195: 0 | X195: 0 | Y195: 0
N196: 193 | T196: 0 | W196: 0 | X196: 0 | Y196: 0
N197: 194 | T197: =IF(OR(R197=5,R197=10, R197=15, R197="BP",R197="SCR"),"NT",S197) -> 0 | W197: =IF(OR(U197=5,U197=10, U197=15, U197="BP",U197="SCR"),"NT",V197) -> 0 | X197: =(T197+W197) -> 0 | Y197: =(T197+W197)/2 -> 0
N198: 195 | T198: 0 | W198: 0 | X198: 0 | Y198: 0
N199: 196 | T199: 0 | W199: 0 | X199: 0 | Y199: 0
N200: 197 | T200: 0 | W200: 0 | X200: 0 | Y200: 0
... 303 more rows

Sheet BFA 2D Payout (hidden)
A1: BFA 2D Payout
A2: Entry Fee | B2: # Entries | C2: % Payback | D2: Added $ | E2: Total Payout | F2: Each Go
A3: 25 | B3: 19 | C3: 0.8 | D3: 200 | E3: =(A3*$C$3)*B3+D3 -> 580 | F3: 0.3
F4: =$E$3*$F$3 -> 174
A5: $5,000-7,500 Pays 5 Places 4 to 1D 1 to 2D
A6: Placings | B6: 1D | D6: 2D
A7: 1st | B7: =($F$4*$C$7) -> 57.42 | C7: 0.33 | D7: =$F$4*$E$7 -> 12.18 | E7: 0.07
A8: 2nd | B8: =$F$4*$C$8 -> 46.98 | C8: 0.27
A9: 3rd | B9: =$F$4*$C$9 -> 34.8 | C9: 0.2
A10: 4th | B10: =$F$4*$C$10 -> 22.62 | C10: 0.13
A11: Totals | B11: =SUM(B7:B10) -> 161.82 | D11: =SUM(D7:D10) -> 12.18 | E11: =(C7+C8+C9+C10+E7+E8) -> 1
A12: =B11+D11 -> 174
A13: $7,501 - 10,000 Pays 6 Places 4 to 1D, 2 to 2D
A14: Placings | B14: 1D | D14: 2D
A15: 1st | B15: =$F$4*$C$15 -> 50.46 | C15: 0.29 | D15: =$F$4*$E$15 -> 15.66 | E15: 0.09
A16: 2nd | B16: =+$F$4*$C$16 -> 41.76 | C16: 0.24 | D16: =F4*E16 -> 8.7 | E16: 0.05
A17: 3rd | B17: =$F$4*$C$17 -> 33.06 | C17: 0.19
A18: 4th | B18: =$F$4*$C$18 -> 24.36 | C18: 0.14
A19: Totals | B19: =SUM(B15:B18) -> 149.64 | D19: =D16+D15 -> 24.36 | E19: =SUM(C15+C16+C17+C18+E15+E16) -> 1
A20: =D19+B19 -> 174
A21: $10,001 - $15,000 Payes 8 Places 5 to 1D, 3 to 2D
A22: Placings | B22: 1D | D22: 2D
A23: 1st | B23: =F4*C23 -> 41.76 | C23: 0.24 | D23: =F4*E23 -> 12.18 | E23: 0.07
A24: 2nd | B24: =F4*C24 -> 34.8 | C24: 0.2 | D24: =F4*E24 -> 8.7 | E24: 0.05
A25: 3rd | B25: =F4*C25 -> 29.58 | C25: 0.17 | D25: =F4*E25 -> 6.96 | E25: 0.04
A26: 4th | B26: =F4*C26 -> 22.62 | C26: 0.13
A27: 5th | B27: =F4*C27 -> 17.4 | C27: 0.1
A28: Totals | B28: =SUM(B23:B27) -> 146.16 | D28: =SUM(D23:D27) -> 27.84 | E28: =C23+C24+C25+C26+C27+E23+E24+E25 -> 1
A29: =B28+D28 -> 174
A30: $15,001 - $25,000 Payes 11 Places 7 to 1D, 4 to 2D
A31: Placings | B31: 1D | D31: 2D
A32: 1st | B32: =$F$4*C32 -> 36.54 | C32: 0.21 | D32: =$F$4*E32 -> 8.7 | E32: 0.05
A33: 2nd | B33: =$F$4*C33 -> 31.32 | C33: 0.18 | D33: =$F$4*E33 -> 6.96 | E33: 0.04
A34: 3rd | B34: 26.1 | C34: 0.15 | D34: 5.22 | E34: 0.03
A35: 4th | B35: 19.14 | C35: 0.11 | D35: 3.48 | E35: 0.02
A36: 5th | B36: 13.92 | C36: 0.08
A37: 6th | B37: 12.18 | C37: 0.07
A38: 7th | B38: 10.44 | C38: 0.06
A39: Totals | B39: =SUM(B32:B38) -> 149.64 | D39: =SUM(D32:D38) -> 24.36 | E39: =C32+C33+C34+C35+C36+C37+C38+E32+E33+E34+E35 -> 1
A40: =SUM(B39+D39) -> 174
A41: $25,001 - $35,000 Payes 12 Places 8 to 1D, 4 to 2D
A42: Placings | B42: 1D | D42: 2D
A43: 1st | B43: =$F$4*C43 -> 33.06 | C43: 0.19 | D43: =$F$4*E43 -> 8.7 | E43: 0.05
A44: 2nd | B44: =$F$4*C44 -> 26.1 | C44: 0.15 | D44: =$F$4*E44 -> 6.96 | E44: 0.04
A45: 3rd | B45: 20.88 | C45: 0.12 | D45: 5.22 | E45: 0.03
A46: 4th | B46: 17.4 | C46: 0.1 | D46: 3.48 | E46: 0.02
A47: 5th | B47: 15.66 | C47: 0.09
A48: 6th | B48: 13.92 | C48: 0.08
A49: 7th | B49: 12.18 | C49: 0.07
A50: 8th | B50: 10.44 | C50: 0.06
A51: Totals | B51: =SUM(B43:B50) -> 149.64 | D51: =SUM(D43:D46) -> 24.36 | E51: =C43+C44+C45+C46+C47+C48+C49+C50+E43+E44+E45+E46 -> 1
A52: =D51+B51 -> 174

Sheet 2D Payout
A1: 2D Payout
A2: Entry Fee | B2: # Entries | C2: % Payback | D2: Added $ | E2: Total Payout
A3: 50 | B3: 22 | C3: 0.8 | D3: 0 | E3: =(A3*$C$3)*B3+D3 -> 880
A5: % in each D | B5: 0.6 | C5: 0.4 | D5: Total % = | E5: =SUM(B5:C5) -> 1
B6: 1D | C6: 2D
B7: =(($A$3*$B$3*$C$3*$B$5)+($D$3*$B$5)) -> 528 | C7: =(($A$3*$B$3*$C$3*$C$5)+($D$3*$C$5)) -> 352
A8: Totals | B8: =SUM(B7) -> 528 | C8: =SUM(C7) -> 352 | D8: =SUM(B8:C8) -> 880
A10: For 1-7 riders 1 place
A11: Placings | B11: 1D | C11: 2D
A12: 1st | B12: =$B$7*$E$12 -> 528 | C12: =$C$7*$E$5 -> 352 | D12: è | E12: 1
A13: Totals | B13: =SUM(B12:B12) -> 528 | C13: =SUM(C12:C12) -> 352 | D13: =SUM(B13:C13) -> 880 | E13: =SUM(E12) -> 1
A15: For 8-11 riders 2 places
A16: Placings | B16: 1D | C16: 2D
A17: 1st | B17: =$B$7*$E$17 -> 316.8 | C17: =$C$7*$E$17 -> 211.2 | D17: è | E17: 0.6
A18: 2nd | B18: =$B$7*$E$18 -> 211.2 | C18: =$C$7*$E$18 -> 140.8 | D18: è | E18: 0.4
A19: Totals | B19: =SUM(B17:B18) -> 528 | C19: =SUM(C17:C18) -> 352 | D19: =SUM(B19:C19) -> 880 | E19: =SUM(E17:E18) -> 1
A21: For 12-15 riders 3 places
A22: Placings | B22: 1D | C22: 2D
A23: 1st | B23: =$B$7*$E$23 -> 264 | C23: =$C$7*$E$23 -> 176 | D23: è | E23: 0.5
A24: 2nd | B24: =$B$7*$E$24 -> 158.4 | C24: =$C$7*$E$24 -> 105.6 | D24: è | E24: 0.3
A25: 3rd | B25: =$B$7*$E$25 -> 105.6 | C25: =$C$7*$E$25 -> 70.4 | D25: è | E25: 0.2
A26: Totals | B26: =SUM(B23:B25) -> 528 | C26: =SUM(C23:C25) -> 352 | D26: =SUM(B26:C26) -> 880 | E26: =SUM(E23:E25) -> 1
A28: For 16-19 riders 4 places
A29: Placings | B29: 1D | C29: 2D
A30: 1st | B30: =$B$7*$E$30 -> 211.2 | C30: =$C$7*$E$30 -> 140.8 | D30: è | E30: 0.4
A31: 2nd | B31: =$B$7*$E$31 -> 158.4 | C31: =$C$7*$E$31 -> 105.6 | D31: è | E31: 0.3
A32: 3rd | B32: =$B$7*$E$32 -> 105.6 | C32: =$C$7*$E$32 -> 70.4 | D32: è | E32: 0.2
A33: 4th | B33: =$B$7*$E$33 -> 52.8 | C33: =$C$7*$E$33 -> 35.2 | D33: è | E33: 0.1
A34: Totals | B34: =SUM(B30:B33) -> 528 | C34: =SUM(C30:C33) -> 352 | D34: =SUM(B34:C34) -> 880 | E34: =SUM(E30:E33) -> 1
A36: For 20-23 riders 5 places
A37: Placings | B37: 1D | C37: 2D
A38: 1st | B38: =$B$7*$E$38 -> 158.4 | C38: =$C$7*$E$38 -> 105.6 | D38: è | E38: 0.3
A39: 2nd | B39: =$B$7*$E$39 -> 132 | C39: =$C$7*$E$39 -> 88 | D39: è | E39: 0.25
A40: 3rd | B40: =$B$7*$E$40 -> 105.6 | C40: =$C$7*$E$40 -> 70.4 | D40: è | E40: 0.2
A41: 4th | B41: =$B$7*$E$41 -> 79.2 | C41: =$C$7*$E$41 -> 52.8 | D41: è | E41: 0.15
A42: 5th | B42: =$B$7*$E$42 -> 52.8 | C42: =$C$7*$E$42 -> 35.2 | D42: è | E42: 0.1
A43: Totals | B43: =SUM(B38:B42) -> 528 | C43: =SUM(C38:C42) -> 352 | D43: =SUM(B43:C43) -> 880 | E43: =SUM(E38:E42) -> 1
A45: For 24-27 riders 6 places
A46: Placings | B46: 1D | C46: 2D
A47: 1st | B47: =$B$7*$E$47 -> 132 | C47: =$C$7*$E$47 -> 88 | D47: è | E47: 0.25
A48: 2nd | B48: =$B$7*$E$48 -> 105.6 | C48: =$C$7*$E$48 -> 70.4 | D48: è | E48: 0.2
A49: 3rd | B49: =$B$7*$E$49 -> 95.04 | C49: =$C$7*$E$49 -> 63.36 | D49: è | E49: 0.18
A50: 4th | B50: =$B$7*$E$50 -> 79.2 | C50: =$C$7*$E$50 -> 52.8 | D50: è | E50: 0.15
A51: 5th | B51: =$B$7*$E$51 -> 63.36 | C51: =$C$7*$E$51 -> 42.24 | D51: è | E51: 0.12
A52: 6th | B52: =$B$7*$E$52 -> 52.8 | C52: =$C$7*$E$52 -> 35.2 | D52: è | E52: 0.1
A53: Totals | B53: =SUM(B47:B52) -> 528 | C53: =SUM(C47:C52) -> 352 | D53: =SUM(B53:C53) -> 880 | E53: =SUM(E47:E52) -> 1
A55: For 28-31 riders 7 places
A56: Placings | B56: 1D | C56: 2D
A57: 1st | B57: =$B$7*$E$57 -> 116.16 | C57: =$C$7*$E$57 -> 77.44 | D57: è | E57: 0.22
A58: 2nd | B58: =$B$7*$E$58 -> 95.04 | C58: =$C$7*$E$58 -> 63.36 | D58: è | E58: 0.18
A59: 3rd | B59: =$B$7*$E$59 -> 84.48 | C59: =$C$7*$E$59 -> 56.32 | D59: è | E59: 0.16
A60: 4th | B60: =$B$7*$E$60 -> 73.92 | C60: =$C$7*$E$60 -> 49.28 | D60: è | E60: 0.14
A61: 5th | B61: =$B$7*$E$61 -> 63.36 | C61: =$C$7*$E$61 -> 42.24 | D61: è | E61: 0.12
A62: 6th | B62: =$B$7*$E$62 -> 52.8 | C62: =$C$7*$E$62 -> 35.2 | D62: è | E62: 0.1
A63: 7th | B63: =$B$7*$E$63 -> 42.24 | C63: =$C$7*$E$63 -> 28.16 | D63: è | E63: 0.08
A64: Totals | B64: =SUM(B57:B63) -> 528 | C64: =SUM(C57:C63) -> 352 | D64: =SUM(B64:C64) -> 880 | E64: =SUM(E57:E63) -> 1
A66: For 32 or more riders 8 places
A67: Placings | B67: 1D | C67: 2D
A68: 1st | B68: =$B$7*$E$68 -> 121.44 | C68: =$C$7*$E$68 -> 80.96 | D68: è | E68: 0.23
A69: 2nd | B69: =$B$7*$E$69 -> 105.6 | C69: =$C$7*$E$69 -> 70.4 | D69: è | E69: 0.2
A70: 3rd | B70: =$B$7*$E$70 -> 89.76 | C70: =$C$7*$E$70 -> 59.84 | D70: è | E70: 0.17
A71: 4th | B71: =$B$7*$E$71 -> 73.92 | C71: =$C$7*$E$71 -> 49.28 | D71: è | E71: 0.14
A72: 5th | B72: =$B$7*$E$72 -> 58.08 | C72: =$C$7*$E$72 -> 38.72 | D72: è | E72: 0.11
A73: 6th | B73: =$B$7*$E$73 -> 42.24 | C73: =$C$7*$E$73 -> 28.16 | D73: è | E73: 0.08
A74: 7th | B74: =$B$7*$E$74 -> 26.4 | C74: =$C$7*$E$74 -> 17.6 | D74: è | E74: 0.05
A75: 8th | B75: =$B$7*$E$75 -> 10.56 | C75: =$C$7*$E$75 -> 7.04 | D75: è | E75: 0.02
A76: Totals | B76: =SUM(B68:B75) -> 528 | C76: =SUM(C68:C75) -> 352 | D76: =SUM(B76:C76) -> 880 | E76: =SUM(E68:E75) -> 1

Sheet 3D Payout (hidden)
A1: 3D Payout
A2: Entry Fee | B2: # Entries | C2: % Payback | D2: $ From Entry | E2: Added $ | F2: Total Payout
A3: 10 | B3: 3 | C3: 0.8 | D3: =$A$3*$C$3*$B$3 -> 24 | F3: =$D$3+$E$3 -> 24
A5: % in each D | B5: 0.5 | C5: 0.3 | D5: 0.2 | E5: Total % = | F5: =SUM(B5:D5) -> 1
B6: 1D | C6: 2D | D6: 3D
B7: =(($A$3*$B$3*$C$3*$B$5)+($E$3*$B$5)) -> 12 | C7: =(($A$3*$B$3*$C$3*$C$5)+($E$3*$C$5)) -> 7.2 | D7: =(($A$3*$B$3*$C$3*$D$5)+($E$3*$D$5)) -> 4.8
A8: Totals | B8: =SUM(B7) -> 12 | C8: =SUM(C7) -> 7.2 | D8: 4.8 | E8: =SUM(B8:D8) -> 24
A10: For 1-10 riders 1 place
A11: Placings | B11: 1D | C11: 2D | D11: 3D
A12: 1st | B12: =$B$7*$F$12 -> 12 | C12: =$C$7*$F$12 -> 7.2 | D12: =$D$7*$F$12 -> 4.8 | E12: è | F12: 1
A13: Totals | B13: =SUM(B12:B12) -> 12 | C13: =SUM(C12:C12) -> 7.2 | D13: =SUM(D12:D12) -> 4.8 | E13: =SUM(B13:D13) -> 24 | F13: =SUM(F12) -> 1
A15: For 11-15 riders 2 places
A16: Placings | B16: 1D | C16: 2D | D16: 3D
A17: 1st | B17: =$B$7*$F$17 -> 7.2 | C17: =$C$7*$F$17 -> 4.32 | D17: =$D$7*$F$17 -> 2.88 | E17: è | F17: 0.6
A18: 2nd | B18: =$B$7*$F$18 -> 4.8 | C18: =$C$7*$F$18 -> 2.88 | D18: =$D$7*$F$18 -> 1.92 | E18: è | F18: 0.4
A19: Totals | B19: =SUM(B17:B18) -> 12 | C19: =SUM(C17:C18) -> 7.2 | D19: =SUM(D17:D18) -> 4.8 | E19: =SUM(B19:D19) -> 24 | F19: =SUM(F17:F18) -> 1
A21: For 16-30 riders 3 places
A22: Placings | B22: 1D | C22: 2D | D22: 3D
A23: 1st | B23: =$B$7*$F$23 -> 6 | C23: =$C$7*$F$23 -> 3.6 | D23: =$D$7*$F$23 -> 2.4 | E23: è | F23: 0.5
A24: 2nd | B24: =$B$7*$F$24 -> 3.6 | C24: =$C$7*$F$24 -> 2.16 | D24: =$D$7*$F$24 -> 1.44 | E24: è | F24: 0.3
A25: 3rd | B25: =$B$7*$F$25 -> 2.4 | C25: =$C$7*$F$25 -> 1.44 | D25: =$D$7*$F$25 -> 0.96 | E25: è | F25: 0.2
A26: Totals | B26: =SUM(B23:B25) -> 12 | C26: =SUM(C23:C25) -> 7.2 | D26: =SUM(D22:D25) -> 4.8 | E26: =SUM(B26:D26) -> 24 | F26: =SUM(F23:F25) -> 1
A28: For 31-60 riders 4 places
A29: Placings | B29: 1D | C29: 2D | D29: 3D
A30: 1st | B30: =$B$7*$F$30 -> 5.04 | C30: =$C$7*$F$30 -> 3.024 | D30: =$D$7*$F$30 -> 2.016 | E30: è | F30: 0.42
A31: 2nd | B31: =$B$7*$F$31 -> 3.48 | C31: =$C$7*$F$31 -> 2.088 | D31: =$D$7*$F$31 -> 1.392 | E31: è | F31: 0.29
A32: 3rd | B32: =$B$7*$F$32 -> 2.28 | C32: =$C$7*$F$32 -> 1.368 | D32: =$D$7*$F$32 -> 0.912 | E32: è | F32: 0.19
A33: 4th | B33: =$B$7*$F$33 -> 1.2 | C33: =$C$7*$F$33 -> 0.72 | D33: =$D$7*$F$33 -> 0.48 | E33: è | F33: 0.1
A34: Totals | B34: =SUM(B30:B33) -> 12 | C34: =SUM(C30:C33) -> 7.2 | D34: =SUM(D30:D33) -> 4.8 | E34: =SUM(B34:D34) -> 24 | F34: =SUM(F30:F33) -> 1
A36: For 61-90 riders 5 places
A37: Placings | B37: 1D | C37: 2D | D37: 3D
A38: 1st | B38: =$B$7*$F$38 -> 4.56 | C38: =$C$7*$F$38 -> 2.736 | D38: =$D$7*$F$38 -> 1.824 | E38: è | F38: 0.38
A39: 2nd | B39: =$B$7*$F$39 -> 3.36 | C39: =$C$7*$F$39 -> 2.016 | D39: =$D$7*$F$39 -> 1.344 | E39: è | F39: 0.28
A40: 3rd | B40: =$B$7*$F$40 -> 2.16 | C40: =$C$7*$F$40 -> 1.296 | D40: =$D$7*$F$40 -> 0.864 | E40: è | F40: 0.18
A41: 4th | B41: =$B$7*$F$41 -> 1.2 | C41: =$C$7*$F$41 -> 0.72 | D41: =$D$7*$F$41 -> 0.48 | E41: è | F41: 0.1
A42: 5th | B42: =$B$7*$F$42 -> 0.72 | C42: =$C$7*$F$42 -> 0.432 | D42: =$D$7*$F$42 -> 0.288 | E42: è | F42: 0.06
A43: Totals | B43: =SUM(B38:B42) -> 12 | C43: =SUM(C38:C42) -> 7.2 | D43: =SUM(D38:D42) -> 4.8 | E43: =SUM(B43:D43) -> 24 | F43: =SUM(F38:F42) -> 1
A45: For 91-120 riders 6 places
A46: Placings | B46: 1D | C46: 2D | D46: 3D
A47: 1st | B47: =$B$7*$F$47 -> 4.32 | C47: =$C$7*$F$47 -> 2.592 | D47: =$D$7*$F$47 -> 1.728 | E47: è | F47: 0.36
A48: 2nd | B48: =$B$7*$F$48 -> 3.12 | C48: =$C$7*$F$48 -> 1.872 | D48: =$D$7*$F$48 -> 1.248 | E48: è | F48: 0.26
A49: 3rd | B49: =$B$7*$F$49 -> 1.92 | C49: =$C$7*$F$49 -> 1.152 | D49: =$D$7*$F$49 -> 0.768 | E49: è | F49: 0.16
A50: 4th | B50: =$B$7*$F$50 -> 1.2 | C50: =$C$7*$F$50 -> 0.72 | D50: =$D$7*$F$50 -> 0.48 | E50: è | F50: 0.1
A51: 5th | B51: =$B$7*$F$51 -> 0.84 | C51: =$C$7*$F$51 -> 0.504 | D51: =$D$7*$F$51 -> 0.336 | E51: è | F51: 0.07
A52: 6th | B52: =$B$7*$F$52 -> 0.6 | C52: =$C$7*$F$52 -> 0.36 | D52: =$D$7*$F$52 -> 0.24 | E52: è | F52: 0.05
A53: Totals | B53: =SUM(B47:B52) -> 12 | C53: =SUM(C47:C52) -> 7.2 | D53: =SUM(D47:D52) -> 4.8 | E53: =SUM(B53:D53) -> 24 | F53: =SUM(F47:F52) -> 1
A55: For 121-200 riders 7 places
A56: Placings | B56: 1D | C56: 2D | D56: 3D
A57: 1st | B57: =$B$7*$F$57 -> 3.12 | C57: =$C$7*$F$57 -> 1.872 | D57: =$D$7*$F$57 -> 1.248 | E57: è | F57: 0.26
A58: 2nd | B58: =$B$7*$F$58 -> 2.4 | C58: =$C$7*$F$58 -> 1.44 | D58: =$D$7*$F$58 -> 0.96 | E58: è | F58: 0.2
A59: 3rd | B59: =$B$7*$F$59 -> 1.8 | C59: =$C$7*$F$59 -> 1.08 | D59: =$D$7*$F$59 -> 0.72 | E59: è | F59: 0.15
A60: 4th | B60: =$B$7*$F$60 -> 1.44 | C60: =$C$7*$F$60 -> 0.864 | D60: =$D$7*$F$60 -> 0.576 | E60: è | F60: 0.12
A61: 5th | B61: =$B$7*$F$61 -> 1.2 | C61: =$C$7*$F$61 -> 0.72 | D61: =$D$7*$F$61 -> 0.48 | E61: è | F61: 0.1
A62: 6th | B62: =$B$7*$F$62 -> 1.08 | C62: =$C$7*$F$62 -> 0.648 | D62: =$D$7*$F$62 -> 0.432 | E62: è | F62: 0.09
A63: 7th | B63: =$B$7*$F$63 -> 0.96 | C63: =$C$7*$F$63 -> 0.576 | D63: =$D$7*$F$63 -> 0.384 | E63: è | F63: 0.08
A64: Totals | B64: =SUM(B57:B63) -> 12 | C64: =SUM(C57:C63) -> 7.2 | D64: =SUM(D57:D63) -> 4.8 | E64: =SUM(B64:D64) -> 24 | F64: =SUM(F57:F63) -> 1
A66: For 201 or more riders 8 places
A67: Placings | B67: 1D | C67: 2D | D67: 3D
A68: 1st | B68: =$B$7*0.24 -> 2.88 | C68: =$C$7*0.24 -> 1.728 | D68: =$D$7*0.24 -> 1.152 | E68: è | F68: 0.24
A69: 2nd | B69: =$B$7*0.18 -> 2.16 | C69: =$C$7*0.18 -> 1.296 | D69: =$D$7*0.18 -> 0.864 | E69: è | F69: 0.18
A70: 3rd | B70: =$B$7*0.15 -> 1.8 | C70: =$C$7*0.15 -> 1.08 | D70: =$D$7*0.15 -> 0.72 | E70: è | F70: 0.15
A71: 4th | B71: =$B$7*0.12 -> 1.44 | C71: =$C$7*0.12 -> 0.864 | D71: =$D$7*0.12 -> 0.576 | E71: è | F71: 0.12
A72: 5th | B72: =$B$7*0.1 -> 1.2 | C72: =$C$7*0.1 -> 0.72 | D72: =$D$7*0.1 -> 0.48 | E72: è | F72: 0.1
A73: 6th | B73: =$B$7*0.08 -> 0.96 | C73: =$C$7*0.08 -> 0.576 | D73: =$D$7*0.08 -> 0.384 | E73: è | F73: 0.08
A74: 7th | B74: =$B$7*0.07 -> 0.84 | C74: =$C$7*0.07 -> 0.504 | D74: =$D$7*0.07 -> 0.336 | E74: è | F74: 0.07
A75: 8th | B75: =$B$7*0.06 -> 0.72 | C75: =$C$7*0.06 -> 0.432 | D75: =$D$7*0.06 -> 0.288 | E75: è | F75: 0.06
A76: Totals | B76: =SUM(B68:B75) -> 12 | C76: =SUM(C68:C75) -> 7.2 | D76: =SUM(D68:D75) -> 4.8 | E76: =SUM(B76:D76) -> 24 | F76: =SUM(F68:F75) -> 1

Sheet 4D Payout BBR (hidden)
A1: 4D Payout BBR
A2: Entry Fee | B2: # Entries | C2: % Payback | D2: $ From Entry | E2: Added $ | F2: Total Payout
A3: 40 | B3: 200 | C3: 0.8 | D3: =$A$3*$C$3*$B$3 -> 6400 | E3: 1100 | F3: =($A$3*$C$3)*$B$3+$E$3 -> 7500
A5: % in each D | B5: 0.35 | C5: 0.3 | D5: 0.2 | E5: 0.15 | F5: Total % Payout | G5: =SUM(B5:E5) -> 1
B6: 1D | C6: 2D | D6: 3D | E6: 4D
B7: =(($A$3*$B$3*$C$3*0.35)+($E$3/4)) -> 2515 | C7: =(($A$3*$B$3*$C$3*0.3)+($E$3/4)) -> 2195 | D7: =(($A$3*$B$3*$C$3*0.2)+($E$3/4)) -> 1555 | E7: =(($A$3*$B$3*$C$3*0.15)+($E$3/4)) -> 1235
A8: Totals | B8: =SUM(B7) -> 2515 | C8: =SUM(C7) -> 2195 | D8: 1555 | E8: 1235 | F8: =SUM(B8:E8) -> 7500
A10: For 1-16 riders 1 place
A11: Placings | B11: 1D | C11: 2D | D11: 3D | E11: 4D
A12: 1st | B12: =$B$7*$G$12 -> 2515 | C12: =$C$7*$G$12 -> 2195 | D12: =$D$7*$G$12 -> 1555 | E12: =$E$7*$G$12 -> 1235 | F12: è | G12: 1
A13: Totals | B13: =SUM(B12:B12) -> 2515 | C13: =SUM(C12:C12) -> 2195 | D13: =SUM(D12:D12) -> 1555 | E13: =SUM(E12:E12) -> 1235 | F13: =SUM(B13:E13) -> 7500 | G13: =SUM(G12) -> 1
A15: For 17-33 riders 2 places
A16: Placings | B16: 1D | C16: 2D | D16: 3D | E16: 4D
A17: 1st | B17: =$B$7*$G$17 -> 1509 | C17: =$C$7*$G$17 -> 1317 | D17: =$D$7*$G$17 -> 933 | E17: =$E$7*$G$17 -> 741 | F17: è | G17: 0.6
A18: 2nd | B18: =$B$7*$G$18 -> 1006 | C18: =$C$7*$G$18 -> 878 | D18: =$D$7*$G$18 -> 622 | E18: =$E$7*$G$18 -> 494 | F18: è | G18: 0.4
A19: Totals | B19: =SUM(B17:B18) -> 2515 | C19: =SUM(C17:C18) -> 2195 | D19: =SUM(D17:D18) -> 1555 | E19: =SUM(E17:E18) -> 1235 | F19: =SUM(B19:E19) -> 7500 | G19: =SUM(G17:G18) -> 1
A21: For 34-66 riders 3 places
A22: Placings | B22: 1D | C22: 2D | D22: 3D | E22: 4D
A23: 1st | B23: =$B$7*$G$23 -> 1257.5 | C23: =$C$7*$G$23 -> 1097.5 | D23: =$D$7*$G$23 -> 777.5 | E23: =$E$7*$G$23 -> 617.5 | F23: è | G23: 0.5
A24: 2nd | B24: =$B$7*$G$24 -> 754.5 | C24: =$C$7*$G$24 -> 658.5 | D24: =$D$7*$G$24 -> 466.5 | E24: =$E$7*$G$24 -> 370.5 | F24: è | G24: 0.3
A25: 3rd | B25: =$B$7*$G$25 -> 503 | C25: =$C$7*$G$25 -> 439 | D25: =$D$7*$G$25 -> 311 | E25: =$E$7*$G$25 -> 247 | F25: è | G25: 0.2
A26: Totals | B26: =SUM(B23:B25) -> 2515 | C26: =SUM(C23:C25) -> 2195 | D26: =SUM(D23:D25) -> 1555 | E26: =SUM(E23:E25) -> 1235 | F26: =SUM(B26:E26) -> 7500 | G26: =SUM(G23:G25) -> 1
A28: For 97-95 riders 4 places
A29: Placings | B29: 1D | C29: 2D | D29: 3D | E29: 4D
A30: 1st | B30: =$B$7*$G$30 -> 1006 | C30: =$C$7*$G$30 -> 878 | D30: =$D$7*$G$30 -> 622 | E30: =$E$7*$G$30 -> 494 | F30: è | G30: 0.4
A31: 2nd | B31: =$B$7*$G$31 -> 754.5 | C31: =$C$7*$G$31 -> 658.5 | D31: =$D$7*$G$31 -> 466.5 | E31: =$E$7*$G$31 -> 370.5 | F31: è | G31: 0.3
A32: 3rd | B32: =$B$7*$G$32 -> 503 | C32: =$C$7*$G$32 -> 439 | D32: =$D$7*$G$32 -> 311 | E32: =$E$7*$G$32 -> 247 | F32: è | G32: 0.2
A33: 4th | B33: =$B$7*$G$33 -> 251.5 | C33: =$C$7*$G$33 -> 219.5 | D33: =$D$7*$G$33 -> 155.5 | E33: =$E$7*$G$33 -> 123.5 | F33: è | G33: 0.1
A34: Totals | B34: =SUM(B30:B33) -> 2515 | C34: =SUM(C30:C33) -> 2195 | D34: =SUM(D30:D33) -> 1555 | E34: =SUM(E30:E33) -> 1235 | F34: =SUM(B34:E34) -> 7500 | G34: =SUM(G30:G33) -> 1
A36: For 96-133 riders 5 places
A37: Placings | B37: 1D | C37: 2D | D37: 3D | E37: 4D
A38: 1st | B38: =$B$7*$G$38 -> 829.95 | C38: =$C$7*$G$38 -> 724.35 | D38: =$D$7*G38 -> 513.15 | E38: =$E$7*$G$38 -> 407.55 | F38: è | G38: 0.33
A39: 2nd | B39: =$B$7*$G$39 -> 679.05 | C39: =$C$7*$G$39 -> 592.65 | D39: =$D$7*$G$39 -> 419.85 | E39: =$E$7*$G$39 -> 333.45 | F39: è | G39: 0.27
A40: 3rd | B40: =$B$7*$G$40 -> 503 | C40: =$C$7*$G$40 -> 439 | D40: =$D$7*$G$40 -> 311 | E40: =$E$7*$G$40 -> 247 | F40: è | G40: 0.2
A41: 4th | B41: =$B$7*$G$41 -> 326.95 | C41: =$C$7*$G$41 -> 285.35 | D41: =$D$7*$G$41 -> 202.15 | E41: =$E$7*$G$41 -> 160.55 | F41: è | G41: 0.13
A42: 5th | B42: =$B$7*$G$42 -> 176.05 | C42: =$C$7*$G$42 -> 153.65 | D42: =$D$7*$G$42 -> 108.85 | E42: =$E$7*$G$42 -> 86.45 | F42: è | G42: 0.07
A43: Totals | B43: =SUM(B38:B42) -> 2515 | C43: =SUM(C38:C42) -> 2195 | D43: =SUM(D38:D42) -> 1555 | E43: =SUM(E38:E42) -> 1235 | F43: =SUM(B43:E43) -> 7500 | G43: =SUM(G38:G42) -> 1
A45: For 134-166 riders 6 places
A46: Placings | B46: 1D | C46: 2D | D46: 3D | E46: 4D
A47: 1st | B47: =$B$7*$G$47 -> 729.35 | C47: =$C$7*$G$47 -> 636.55 | D47: =$D$7*$G$47 -> 450.95 | E47: =$E$7*$G$47 -> 358.15 | F47: è | G47: 0.29
A48: 2nd | B48: =$B$7*$G$48 -> 603.6 | C48: =$C$7*$G$48 -> 526.8 | D48: =$D$7*$G$48 -> 373.2 | E48: =$E$7*$G$48 -> 296.4 | F48: è | G48: 0.24
A49: 3rd | B49: =$B$7*$G$49 -> 477.85 | C49: =$C$7*$G$49 -> 417.05 | D49: =$D$7*$G$49 -> 295.45 | E49: =$E$7*$G$49 -> 234.65 | F49: è | G49: 0.19
A50: 4th | B50: =$B$7*$G$50 -> 352.1 | C50: =$C$7*$G$50 -> 307.3 | D50: =$D$7*$G$50 -> 217.7 | E50: =$E$7*$G$50 -> 172.9 | F50: è | G50: 0.14
A51: 5th | B51: =$B$7*$G$51 -> 226.35 | C51: =$C$7*$G$51 -> 197.55 | D51: =$D$7*$G$51 -> 139.95 | E51: =$E$7*$G$51 -> 111.15 | F51: è | G51: 0.09
A52: 6th | B52: =$B$7*$G$52 -> 125.75 | C52: =$C$7*$G$52 -> 109.75 | D52: =$D$7*$G$52 -> 77.75 | E52: =$E$7*$G$52 -> 61.75 | F52: è | G52: 0.05
A53: Totals | B53: =SUM(B47:B52) -> 2515 | C53: =SUM(C47:C52) -> 2195 | D53: =SUM(D47:D52) -> 1555 | E53: =SUM(E47:E52) -> 1235 | F53: =SUM(B53:E53) -> 7500 | G53: =SUM(G47:G52) -> 1
A55: For 167-222 riders 8 places
A56: Placings | B56: 1D | C56: 2D | D56: 3D | E56: 4D
A57: 1st | B57: =$B$7*$G$57 -> 603.6 | C57: =$C$7*$G$57 -> 526.8 | D57: =$D$7*$G$57 -> 373.2 | E57: =$E$7*$G$57 -> 296.4 | F57: è | G57: 0.24
A58: 2nd | B58: =$B$7*$G$58 -> 503 | C58: =$C$7*$G$58 -> 439 | D58: =$D$7*$G$58 -> 311 | E58: =$E$7*$G$58 -> 247 | F58: è | G58: 0.2
A59: 3rd | B59: =$B$7*$G$59 -> 427.55 | C59: =$C$7*$G$59 -> 373.15 | D59: =$D$7*$G$59 -> 264.35 | E59: =$E$7*$G$59 -> 209.95 | F59: è | G59: 0.17
A60: 4th | B60: =$B$7*$G$60 -> 326.95 | C60: =$C$7*$G$60 -> 285.35 | D60: =$D$7*$G$60 -> 202.15 | E60: =$E$7*$G$60 -> 160.55 | F60: è | G60: 0.13
A61: 5th | B61: =$B$7*$G$61 -> 251.5 | C61: =$C$7*$G$61 -> 219.5 | D61: =$D$7*$G$61 -> 155.5 | E61: =$E$7*$G$61 -> 123.5 | F61: è | G61: 0.1
A62: 6th | B62: =$B$7*$G$62 -> 176.05 | C62: =$C$7*$G$62 -> 153.65 | D62: =$D$7*$G$62 -> 108.85 | E62: =$E$7*$G$62 -> 86.45 | F62: è | G62: 0.07
A63: 7th | B63: =$B$7*$G$63 -> 125.75 | C63: =$C$7*$G$63 -> 109.75 | D63: =$D$7*$G$63 -> 77.75 | E63: =$E$7*$G$63 -> 61.75 | F63: è | G63: 0.05
A64: 8th | B64: =$B$7*$G$64 -> 100.6 | C64: =$C$7*$G$64 -> 87.8 | D64: =$D$7*$G$64 -> 62.2 | E64: =$E$7*$G$64 -> 49.4 | F64: è | G64: 0.04
A65: Totals | B65: =SUM(B57:B64) -> 2515 | C65: =SUM(C57:C64) -> 2195 | D65: =SUM(D57:D64) -> 1555 | E65: =SUM(E57:E64) -> 1235 | F65: =SUM(B65:E65) -> 7500 | G65: =SUM(G57:G64) -> 1
A67: For 223-333 riders 10 places
A68: Placings | B68: 1D | C68: 2D | D68: 3D | E68: 4D
A69: 1st | B69: =$B$7*$G$69 -> 528.15 | C69: =$C$7*$G$69 -> 460.95 | D69: =$D$7*$G$69 -> 326.55 | E69: =$E$7*$G$69 -> 259.35 | F69: è | G69: 0.21
A70: 2nd | B70: =$B$7*$G$70 -> 452.7 | C70: =$C$7*$G$70 -> 395.1 | D70: =$D$7*$G$70 -> 279.9 | E70: =$E$7*$G$70 -> 222.3 | F70: è | G70: 0.18
A71: 3rd | B71: =$B$7*$G$71 -> 377.25 | C71: =$C$7*$G$71 -> 329.25 | D71: =$D$7*$G$71 -> 233.25 | E71: =$E$7*$G$71 -> 185.25 | F71: è | G71: 0.15
A72: 4th | B72: =$B$7*$G$72 -> 301.8 | C72: =$C$7*$G$72 -> 263.4 | D72: =$D$7*$G$72 -> 186.6 | E72: =$E$7*$G$72 -> 148.2 | F72: è | G72: 0.12
A73: 5th | B73: =$B$7*$G$73 -> 226.35 | C73: =$C$7*$G$73 -> 197.55 | D73: =$D$7*$G$73 -> 139.95 | E73: =$E$7*$G$73 -> 111.15 | F73: è | G73: 0.09
A74: 6th | B74: =$B$7*$G$74 -> 176.05 | C74: =$C$7*$G$74 -> 153.65 | D74: =$D$7*$G$74 -> 108.85 | E74: =$E$7*$G$74 -> 86.45 | F74: è | G74: 0.07
A75: 7th | B75: =$B$7*$G$75 -> 150.9 | C75: =$C$7*$G$75 -> 131.7 | D75: =$D$7*$G$75 -> 93.3 | E75: =$E$7*$G$75 -> 74.1 | F75: è | G75: 0.06
A76: 8th | B76: =$B$7*$G$76 -> 125.75 | C76: =$C$7*$G$76 -> 109.75 | D76: =$D$7*$G$76 -> 77.75 | E76: =$E$7*$G$76 -> 61.75 | F76: è | G76: 0.05
A77: 9th | B77: =$B$7*$G$77 -> 100.6 | C77: =$C$7*$G$77 -> 87.8 | D77: =$D$7*$G$77 -> 62.2 | E77: =$E$7*$G$77 -> 49.4 | F77: è | G77: 0.04
A78: 10th | B78: =$B$7*$G$78 -> 75.45 | C78: =$C$7*$G$78 -> 65.85 | D78: =$D$7*$G$78 -> 46.65 | E78: =$E$7*$G$78 -> 37.05 | F78: è | G78: 0.03
A79: Totals | B79: =SUM(B69:B78) -> 2515 | C79: =SUM(C69:C78) -> 2195 | D79: =SUM(D69:D78) -> 1555 | E79: =SUM(E69:E78) -> 1235 | F79: =B79+C79+D79+E79 -> 7500 | G79: =SUM(G69:G78) -> 1
A81: For 334-500 riders 12 places
A82: Placings | B82: 1D | C82: 2D | D82: 3D | E82: 4D
A83: 1st | B83: =$B$7*$G$83 -> 477.85 | C83: =$C$7*$G$83 -> 417.05 | D83: =$D$7*$G$83 -> 295.45 | E83: =$E$7*$G$83 -> 234.65 | F83: è | G83: 0.19
A84: 2nd | B84: =$B$7*$G$84 -> 377.25 | C84: =$C$7*$G$84 -> 329.25 | D84: =$D$7*$G$84 -> 233.25 | E84: =$E$7*$G$84 -> 185.25 | F84: è | G84: 0.15
A85: 3rd | B85: =$B$7*$G$85 -> 301.8 | C85: =$C$7*$G$85 -> 263.4 | D85: =$D$7*$G$85 -> 186.6 | E85: =$E$7*$G$85 -> 148.2 | F85: è | G85: 0.12
A86: 4th | B86: =$B$7*$G$86 -> 251.5 | C86: =$C$7*$G$86 -> 219.5 | D86: =$D$7*$G$86 -> 155.5 | E86: =$E$7*$G$86 -> 123.5 | F86: è | G86: 0.1
A87: 5th | B87: =$B$7*$G$87 -> 226.35 | C87: =$C$7*$G$87 -> 197.55 | D87: =$D$7*$G$87 -> 139.95 | E87: =$E$7*$G$87 -> 111.15 | F87: è | G87: 0.09
A88: 6th | B88: =$B$7*$G$88 -> 201.2 | C88: =$C$7*$G$88 -> 175.6 | D88: =$D$7*$G$88 -> 124.4 | E88: =$E$7*$G$88 -> 98.8 | F88: è | G88: 0.08
A89: 7th | B89: =$B$7*$G$89 -> 176.05 | C89: =$C$7*$G$89 -> 153.65 | D89: =$D$7*$G$89 -> 108.85 | E89: =$E$7*$G$89 -> 86.45 | F89: è | G89: 0.07
A90: 8th | B90: =$B$7*$G$90 -> 150.9 | C90: =$C$7*$G$90 -> 131.7 | D90: =$D$7*$G$90 -> 93.3 | E90: =$E$7*$G$90 -> 74.1 | F90: è | G90: 0.06
A91: 9th | B91: =$B$7*$G$91 -> 125.75 | C91: =$C$7*$G$91 -> 109.75 | D91: =$D$7*$G$91 -> 77.75 | E91: =$E$7*$G$91 -> 61.75 | F91: è | G91: 0.05
A92: 10th | B92: =$B$7*$G$92 -> 100.6 | C92: =$C$7*$G$92 -> 87.8 | D92: =$D$7*$G$92 -> 62.2 | E92: =$E$7*$G$92 -> 49.4 | F92: è | G92: 0.04
A93: 11th | B93: =$B$7*$G$93 -> 75.45 | C93: =$C$7*$G$93 -> 65.85 | D93: =$D$7*$G$93 -> 46.65 | E93: =$E$7*$G$93 -> 37.05 | F93: è | G93: 0.03
A94: 12th | B94: =$B$7*$G$94 -> 50.3 | C94: =$C$7*$G$94 -> 43.9 | D94: =$D$7*$G$94 -> 31.1 | E94: =$E$7*$G$94 -> 24.7 | F94: è | G94: 0.02
A95: Totals | B95: =SUM(B83:B94) -> 2515 | C95: =SUM(C83:C94) -> 2195 | D95: 1555 | E95: 1235 | F95: =B95+C95+D95+E95 -> 7500 | G95: =SUM(G83:G94) -> 1
A97: For 501-750 riders 15 places
A98: Placings | B98: 1D | C98: 2D | D98: 3D | E98: 4D
A99: 1st | B99: =$B$7*$G$99 -> 452.7 | C99: =$C$7*$G$99 -> 395.1 | D99: =$D$7*$G$99 -> 279.9 | E99: =$E$7*$G$99 -> 222.3 | F99: è | G99: 0.18
A100: 2nd | B100: =$B$7*$G$100 -> 377.25 | C100: =$C$7*$G$100 -> 329.25 | D100: =$D$7*$G$100 -> 233.25 | E100: =$E$7*$G$100 -> 185.25 | F100: è | G100: 0.15
A101: 3rd | B101: =$B$7*$G$101 -> 301.8 | C101: =$C$7*$G$101 -> 263.4 | D101: =$D$7*$G$101 -> 186.6 | E101: =$E$7*$G$101 -> 148.2 | F101: è | G101: 0.12
A102: 4th | B102: =$B$7*$G$102 -> 251.5 | C102: =$C$7*$G$102 -> 219.5 | D102: =$D$7*$G$102 -> 155.5 | E102: =$E$7*$G$102 -> 123.5 | F102: è | G102: 0.1
A103: 5th | B103: =$B$7*$G$103 -> 213.775 | C103: =$C$7*$G$103 -> 186.575 | D103: =$D$7*$G$103 -> 132.175 | E103: =$E$7*$G$103 -> 104.975 | F103: è | G103: 0.085
A104: 6th | B104: =$B$7*$G$104 -> 176.05 | C104: =$C$7*$G$104 -> 153.65 | D104: =$D$7*$G$104 -> 108.85 | E104: =$E$7*$G$104 -> 86.45 | F104: è | G104: 0.07
A105: 7th | B105: =$B$7*$G$105 -> 150.9 | C105: =$C$7*$G$105 -> 131.7 | D105: =$D$7*$G$105 -> 93.3 | E105: =$E$7*$G$105 -> 74.1 | F105: è | G105: 0.06
A106: 8th | B106: =$B$7*$G$106 -> 125.75 | C106: =$C$7*$G$106 -> 109.75 | D106: =$D$7*$G$106 -> 77.75 | E106: =$E$7*$G$106 -> 61.75 | F106: è | G106: 0.05
A107: 9th | B107: =$B$7*$G$107 -> 106.8875 | C107: =$C$7*$G$107 -> 93.2875 | D107: =$D$7*$G$107 -> 66.0875 | E107: =$E$7*$G$107 -> 52.4875 | F107: è | G107: 0.0425
A108: 10th | B108: =$B$7*$G$108 -> 88.025 | C108: =$C$7*$G$108 -> 76.825 | D108: =$D$7*$G$108 -> 54.425 | E108: =$E$7*$G$108 -> 43.225 | F108: è | G108: 0.035
A109: 11th | B109: =$B$7*$G$109 -> 75.45 | C109: =$C$7*$G$109 -> 65.85 | D109: =$D$7*$G$109 -> 46.65 | E109: =$E$7*$G$109 -> 37.05 | F109: è | G109: 0.03
A110: 12th | B110: =$B$7*$G$110 -> 62.875 | C110: =$C$7*$G$110 -> 54.875 | D110: =$D$7*$G$110 -> 38.875 | E110: =$E$7*$G$110 -> 30.875 | F110: è | G110: 0.025
A111: 13th | B111: =$B$7*$G$111 -> 50.3 | C111: =$C$7*$G$111 -> 43.9 | D111: =$D$7*$G$111 -> 31.1 | E111: =$E$7*$G$111 -> 24.7 | F111: è | G111: 0.02
A112: 14th | B112: =$B$7*$G$112 -> 44.0125 | C112: =$C$7*$G$112 -> 38.4125 | D112: =$D$7*$G$112 -> 27.2125 | E112: =$E$7*$G$112 -> 21.6125 | F112: è | G112: 0.0175
A113: 15th | B113: =$B$7*$G$113 -> 37.725 | C113: =$C$7*$G$113 -> 32.925 | D113: =$D$7*$G$113 -> 23.325 | E113: =$E$7*$G$113 -> 18.525 | F113: è | G113: 0.015
A114: Totals | B114: =SUM(B99:B113) -> 2515 | C114: =SUM(C99:C113) -> 2195 | D114: 1555 | E114: 1235 | F114: =B114+C114+D114+E114 -> 7500 | G114: =SUM(G99:G113) -> 1
A116: For 751-1200 riders 20 places
A117: Placings | B117: 1D | C117: 2D | D117: 3D | E117: 4D
A118: 1st | B118: =$B$7*$G$118 -> 352.1 | C118: =$C$7*$G$118 -> 307.3 | D118: =$D$7*$G$118 -> 217.7 | E118: =$E$7*$G$118 -> 172.9 | F118: è | G118: 0.14
A119: 2nd | B119: =$B$7*$G$119 -> 276.65 | C119: =$C$7*$G$119 -> 241.45 | D119: =$D$7*$G$119 -> 171.05 | E119: =$E$7*$G$119 -> 135.85 | F119: è | G119: 0.11
A120: 3rd | B120: =$B$7*$G$120 -> 226.35 | C120: =$C$7*$G$120 -> 197.55 | D120: =$D$7*$G$120 -> 139.95 | E120: =$E$7*$G$120 -> 111.15 | F120: è | G120: 0.09
A121: 4th | B121: =$B$7*$G$121 -> 193.655 | C121: =$C$7*$G$121 -> 169.015 | D121: =$D$7*$G$121 -> 119.735 | E121: =$E$7*$G$121 -> 95.095 | F121: è | G121: 0.077
A122: 5th | B122: =$B$7*$G$122 -> 176.05 | C122: =$C$7*$G$122 -> 153.65 | D122: =$D$7*$G$122 -> 108.85 | E122: =$E$7*$G$122 -> 86.45 | F122: è | G122: 0.07
A123: 6th | B123: =$B$7*$G$123 -> 163.475 | C123: =$C$7*$G$123 -> 142.675 | D123: =$D$7*$G$123 -> 101.075 | E123: =$E$7*$G$123 -> 80.275 | F123: è | G123: 0.065
A124: 7th | B124: =$B$7*$G$124 -> 150.9 | C124: =$C$7*$G$124 -> 131.7 | D124: =$D$7*$G$124 -> 93.3 | E124: =$E$7*$G$124 -> 74.1 | F124: è | G124: 0.06
A125: 8th | B125: =$B$7*$G$125 -> 138.325 | C125: =$C$7*$G$125 -> 120.725 | D125: =$D$7*$G$125 -> 85.525 | E125: =$E$7*$G$125 -> 67.925 | F125: è | G125: 0.055
A126: 9th | B126: =$B$7*$G$126 -> 125.75 | C126: =$C$7*$G$126 -> 109.75 | D126: =$D$7*$G$126 -> 77.75 | E126: =$E$7*$G$126 -> 61.75 | F126: è | G126: 0.05
A127: 10th | B127: =$B$7*$G$127 -> 113.175 | C127: =$C$7*$G$127 -> 98.775 | D127: =$D$7*$G$127 -> 69.975 | E127: =$E$7*$G$127 -> 55.575 | F127: è | G127: 0.045
A128: 11th | B128: =$B$7*$G$128 -> 100.6 | C128: =$C$7*$G$128 -> 87.8 | D128: =$D$7*$G$128 -> 62.2 | E128: =$E$7*$G$128 -> 49.4 | F128: è | G128: 0.04
A129: 12th | B129: =$B$7*$G$129 -> 93.055 | C129: =$C$7*$G$129 -> 81.215 | D129: =$D$7*$G$129 -> 57.535 | E129: =$E$7*$G$129 -> 45.695 | F129: è | G129: 0.037
A130: 13th | B130: =$B$7*$G$130 -> 82.995 | C130: =$C$7*$G$130 -> 72.435 | D130: =$D$7*$G$130 -> 51.315 | E130: =$E$7*$G$130 -> 40.755 | F130: è | G130: 0.033
A131: 14th | B131: =$B$7*$G$131 -> 72.935 | C131: =$C$7*$G$131 -> 63.655 | D131: =$D$7*$G$131 -> 45.095 | E131: =$E$7*$G$131 -> 35.815 | F131: è | G131: 0.029
A132: 15th | B132: =$B$7*$G$132 -> 62.875 | C132: =$C$7*$G$132 -> 54.875 | D132: =$D$7*$G$132 -> 38.875 | E132: =$E$7*$G$132 -> 30.875 | F132: è | G132: 0.025
A133: 16th | B133: =$B$7*$G$133 -> 52.815 | C133: =$C$7*$G$133 -> 46.095 | D133: =$D$7*$G$133 -> 32.655 | E133: =$E$7*$G$133 -> 25.935 | F133: è | G133: 0.021
A134: 17th | B134: =$B$7*$G$134 -> 42.755 | C134: =$C$7*$G$134 -> 37.315 | D134: =$D$7*$G$134 -> 26.435 | E134: =$E$7*$G$134 -> 20.995 | F134: è | G134: 0.017
A135: 18th | B135: =$B$7*$G$135 -> 35.21 | C135: =$C$7*$G$135 -> 30.73 | D135: =$D$7*$G$135 -> 21.77 | E135: =$E$7*$G$135 -> 17.29 | F135: è | G135: 0.014
A136: 19th | B136: =$B$7*$G$136 -> 30.18 | C136: =$C$7*$G$136 -> 26.34 | D136: =$D$7*$G$136 -> 18.66 | E136: =$E$7*$G$136 -> 14.82 | F136: è | G136: 0.012
A137: 20th | B137: =$B$7*$G$137 -> 25.15 | C137: =$C$7*$G$137 -> 21.95 | D137: =$D$7*$G$137 -> 15.55 | E137: =$E$7*$G$137 -> 12.35 | F137: è | G137: 0.01
A138: Totals | B138: =SUM(B118:B137) -> 2515 | C138: =SUM(C118:C137) -> 2195 | D138: 1555 | E138: 1235 | F138: =B138+C138+D138+E138 -> 7500 | G138: =SUM(G118:G137) -> 1
A140: For 1201 or More riders 30 places
A141: Placings | B141: 1D | C141: 2D | D141: 3D | E141: 4D
A142: 1st | B142: =$B$7*$G$142 -> 301.8 | C142: =$C$7*$G$142 -> 263.4 | D142: =$D$7*$G$142 -> 186.6 | E142: =$E$7*$G$142 -> 148.2 | F142: è | G142: 0.12
A143: 2nd | B143: =$B$7*$G$143 -> 238.925 | C143: =$C$7*$G$143 -> 208.525 | D143: =$D$7*$G$143 -> 147.725 | E143: =$E$7*$G$143 -> 117.325 | F143: è | G143: 0.095
A144: 3rd | B144: =$B$7*$G$144 -> 183.595 | C144: =$C$7*$G$144 -> 160.235 | D144: =$D$7*$G$144 -> 113.515 | E144: =$E$7*$G$144 -> 90.155 | F144: è | G144: 0.073
A145: 4th | B145: =$B$7*$G$145 -> 155.93 | C145: =$C$7*$G$145 -> 136.09 | D145: =$D$7*$G$145 -> 96.41 | E145: =$E$7*$G$145 -> 76.57 | F145: è | G145: 0.062
A146: 5th | B146: =$B$7*$G$146 -> 125.75 | C146: =$C$7*$G$146 -> 109.75 | D146: =$D$7*$G$146 -> 77.75 | E146: =$E$7*$G$146 -> 61.75 | F146: è | G146: 0.05
A147: 6th | B147: =$B$7*$G$147 -> 113.175 | C147: =$C$7*$G$147 -> 98.775 | D147: =$D$7*$G$147 -> 69.975 | E147: =$E$7*$G$147 -> 55.575 | F147: è | G147: 0.045
A148: 7th | B148: =$B$7*$G$148 -> 108.145 | C148: =$C$7*$G$148 -> 94.385 | D148: =$D$7*$G$148 -> 66.865 | E148: =$E$7*$G$148 -> 53.105 | F148: è | G148: 0.043
A149: 8th | B149: =$B$7*$G$149 -> 100.6 | C149: =$C$7*$G$149 -> 87.8 | D149: =$D$7*$G$149 -> 62.2 | E149: =$E$7*$G$149 -> 49.4 | F149: è | G149: 0.04
A150: 9th | B150: =$B$7*$G$150 -> 93.055 | C150: =$C$7*$G$150 -> 81.215 | D150: =$D$7*$G$150 -> 57.535 | E150: =$E$7*$G$150 -> 45.695 | F150: è | G150: 0.037
A151: 10th | B151: =$B$7*$G$151 -> 88.025 | C151: =$C$7*$G$151 -> 76.825 | D151: =$D$7*$G$151 -> 54.425 | E151: =$E$7*$G$151 -> 43.225 | F151: è | G151: 0.035
A152: 11th | B152: =$B$7*$G$152 -> 82.995 | C152: =$C$7*$G$152 -> 72.435 | D152: =$D$7*$G$152 -> 51.315 | E152: =$E$7*$G$152 -> 40.755 | F152: è | G152: 0.033
A153: 12th | B153: =$B$7*$G$153 -> 77.965 | C153: =$C$7*$G$153 -> 68.045 | D153: =$D$7*$G$153 -> 48.205 | E153: =$E$7*$G$153 -> 38.285 | F153: è | G153: 0.031
A154: 13th | B154: =$B$7*$G$154 -> 72.935 | C154: =$C$7*$G$154 -> 63.655 | D154: =$D$7*$G$154 -> 45.095 | E154: =$E$7*$G$154 -> 35.815 | F154: è | G154: 0.029
A155: 14th | B155: =$B$7*$G$155 -> 67.905 | C155: =$C$7*$G$155 -> 59.265 | D155: =$D$7*$G$155 -> 41.985 | E155: =$E$7*$G$155 -> 33.345 | F155: è | G155: 0.027
A156: 15th | B156: =$B$7*$G$156 -> 62.875 | C156: =$C$7*$G$156 -> 54.875 | D156: =$D$7*$G$156 -> 38.875 | E156: =$E$7*$G$156 -> 30.875 | F156: è | G156: 0.025
A157: 16th | B157: =$B$7*$G$157 -> 60.36 | C157: =$C$7*$G$157 -> 52.68 | D157: =$D$7*$G$157 -> 37.32 | E157: =$E$7*$G$157 -> 29.64 | F157: è | G157: 0.024
A158: 17th | B158: =$B$7*$G$158 -> 57.845 | C158: =$C$7*$G$158 -> 50.485 | D158: =$D$7*$G$158 -> 35.765 | E158: =$E$7*$G$158 -> 28.405 | F158: è | G158: 0.023
A159: 18th | B159: =$B$7*$G$159 -> 55.33 | C159: =$C$7*$G$159 -> 48.29 | D159: =$D$7*$G$159 -> 34.21 | E159: =$E$7*$G$159 -> 27.17 | F159: è | G159: 0.022
A160: 19th | B160: =$B$7*$G$160 -> 52.815 | C160: =$C$7*$G$160 -> 46.095 | D160: =$D$7*$G$160 -> 32.655 | E160: =$E$7*$G$160 -> 25.935 | F160: è | G160: 0.021
A161: 20th | B161: =$B$7*$G$161 -> 50.3 | C161: =$C$7*$G$161 -> 43.9 | D161: =$D$7*$G$161 -> 31.1 | E161: =$E$7*$G$161 -> 24.7 | F161: è | G161: 0.02
A162: 21st | B162: =$B$7*$G$162 -> 47.785 | C162: =$C$7*$G$162 -> 41.705 | D162: =$D$7*$G$162 -> 29.545 | E162: =$E$7*$G$162 -> 23.465 | F162: è | G162: 0.019
A163: 22nd | B163: =$B$7*$G$163 -> 45.27 | C163: =$C$7*$G$163 -> 39.51 | D163: =$D$7*$G$163 -> 27.99 | E163: =$E$7*$G$163 -> 22.23 | F163: è | G163: 0.018
A164: 23rd | B164: =$B$7*$G$164 -> 42.755 | C164: =$C$7*$G$164 -> 37.315 | D164: =$D$7*$G$164 -> 26.435 | E164: =$E$7*$G$164 -> 20.995 | F164: è | G164: 0.017
A165: 24th | B165: =$B$7*$G$165 -> 40.24 | C165: =$C$7*$G$165 -> 35.12 | D165: =$D$7*$G$165 -> 24.88 | E165: =$E$7*$G$165 -> 19.76 | F165: è | G165: 0.016
A166: 25th | B166: =$B$7*$G$166 -> 37.725 | C166: =$C$7*$G$166 -> 32.925 | D166: =$D$7*$G$166 -> 23.325 | E166: =$E$7*$G$166 -> 18.525 | F166: è | G166: 0.015
A167: 26th | B167: =$B$7*$G$167 -> 35.21 | C167: =$C$7*$G$167 -> 30.73 | D167: =$D$7*$G$167 -> 21.77 | E167: =$E$7*$G$167 -> 17.29 | F167: è | G167: 0.014
A168: 27th | B168: =$B$7*$G$168 -> 32.695 | C168: =$C$7*$G$168 -> 28.535 | D168: =$D$7*$G$168 -> 20.215 | E168: =$E$7*$G$168 -> 16.055 | F168: è | G168: 0.013
A169: 28th | B169: =$B$7*$G$169 -> 30.18 | C169: =$C$7*$G$169 -> 26.34 | D169: =$D$7*$G$169 -> 18.66 | E169: =$E$7*$G$169 -> 14.82 | F169: è | G169: 0.012
A170: 29th | B170: =$B$7*$G$170 -> 27.665 | C170: =$C$7*$G$170 -> 24.145 | D170: =$D$7*$G$170 -> 17.105 | E170: =$E$7*$G$170 -> 13.585 | F170: è | G170: 0.011
A171: 30th | B171: =$B$7*$G$171 -> 25.15 | C171: =$C$7*$G$171 -> 21.95 | D171: =$D$7*$G$171 -> 15.55 | E171: =$E$7*$G$171 -> 12.35 | F171: è | G171: 0.01
A172: Totals | B172: =SUM(B142:B171) -> 2515 | C172: =SUM(C142:C171) -> 2195 | D172: =SUM(D142:D171) -> 1555 | E172: =SUM(E142:E171) -> 1235 | F172: =B172+C172+D172+E172 -> 7500 | G172: =SUM(G142:G171) -> 1

Sheet 5D Payout BBR
A1: 5D Payout BBR
A2: Entry Fee | B2: # Entries | C2: % Payback | D2: $ From Entry | E2: Added $ | F2: Total Payout | G2: Total $ Held
A3: 50 | B3: 11 | C3: 0.8 | D3: =$A$3*$C$3*$B$3 -> 440 | F3: =($A$3*$C$3)*$B$3+$E$3 -> 440 | G3: =$A$3*(100%-$C$3)*$B$3 -> 110
A5: % in each D | B5: 0.3 | C5: 0.25 | D5: 0.2 | E5: 0.15 | F5: 0.1 | G5: Total % Payout | H5: =SUM(B5:F5) -> 1
B6: 1D | C6: 2D | D6: 3D | E6: 4D | F6: 5D
B7: =(($A$3*$B$3*$C$3*$B$5)+($E$3*$B$5)) -> 132 | C7: =(($A$3*$B$3*$C$3*$C$5)+($E$3*$C$5)) -> 110 | D7: =(($A$3*$B$3*$C$3*$D$5)+($E$3*$D$5)) -> 88 | E7: =(($A$3*$B$3*$C$3*$E$5)+($E$3*$E$5)) -> 66 | F7: =(($A$3*$B$3*$C$3*$F$5)+($E$3*$F$5)) -> 44
A8: Totals | B8: =SUM(B7) -> 132 | C8: =SUM(C7) -> 110 | D8: 88 | E8: 66 | F8: 44 | G8: =SUM(B8:F8) -> 440
A10: For 1-25 riders 1 place
A11: Placings | B11: 1D | C11: 2D | D11: 3D | E11: 4D | F11: 5D
A12: 1st | B12: =$B$7*$H$12 -> 132 | C12: =$C$7*$H$12 -> 110 | D12: =$D$7*$H$12 -> 88 | E12: =$E$7*$H$12 -> 66 | F12: =$F$7*$H$12 -> 44 | G12: è | H12: 1
A13: Totals | B13: =SUM(B12:B12) -> 132 | C13: =SUM(C12:C12) -> 110 | D13: =SUM(D12:D12) -> 88 | E13: =SUM(E12:E12) -> 66 | F13: =SUM(F12) -> 44 | G13: =SUM(B13:F13) -> 440 | H13: =SUM(H12) -> 1
A15: For 26-50 riders 2 places
A16: Placings | B16: 1D | C16: 2D | D16: 3D | E16: 4D | F16: 5D
A17: 1st | B17: =$B$7*$H$17 -> 79.2 | C17: =$C$7*$H$17 -> 66 | D17: =$D$7*$H$17 -> 52.8 | E17: =$E$7*$H$17 -> 39.6 | F17: =$F$7*$H$17 -> 26.4 | G17: è | H17: 0.6
A18: 2nd | B18: =$B$7*$H$18 -> 52.8 | C18: =$C$7*$H$18 -> 44 | D18: =$D$7*$H$18 -> 35.2 | E18: =$E$7*$H$18 -> 26.4 | F18: =$F$7*$H$18 -> 17.6 | G18: è | H18: 0.4
A19: Totals | B19: =SUM(B17:B18) -> 132 | C19: =SUM(C17:C18) -> 110 | D19: =SUM(D17:D18) -> 88 | E19: =SUM(E17:E18) -> 66 | F19: =SUM(F17:F18) -> 44 | G19: =SUM(B19:F19) -> 440 | H19: =SUM(H17:H18) -> 1
A21: For 51-100 riders 3 places
A22: Placings | B22: 1D | C22: 2D | D22: 3D | E22: 4D | F22: 5D
A23: 1st | B23: =$B$7*$H$23 -> 66 | C23: =$C$7*$H$23 -> 55 | D23: =$D$7*$H$23 -> 44 | E23: =$E$7*$H$23 -> 33 | F23: =$F$7*$H$23 -> 22 | G23: è | H23: 0.5
A24: 2nd | B24: =$B$7*$H$24 -> 39.6 | C24: =$C$7*$H$24 -> 33 | D24: =$D$7*$H$24 -> 26.4 | E24: =$E$7*$H$24 -> 19.8 | F24: =$F$7*$H$24 -> 13.2 | G24: è | H24: 0.3
A25: 3rd | B25: =$B$7*$H$25 -> 26.4 | C25: =$C$7*$H$25 -> 22 | D25: =$D$7*$H$25 -> 17.6 | E25: =$E$7*$H$25 -> 13.2 | F25: =$F$7*$H$25 -> 8.8 | G25: è | H25: 0.2
A26: Totals | B26: =SUM(B23:B25) -> 132 | C26: =SUM(C23:C25) -> 110 | D26: =SUM(D23:D25) -> 88 | E26: =SUM(E23:E25) -> 66 | F26: =SUM(F23:F25) -> 44 | G26: =SUM(B26:F26) -> 440 | H26: =SUM(H23:H25) -> 1
A28: For 101-143 riders 4 places
A29: Placings | B29: 1D | C29: 2D | D29: 3D | E29: 4D | F29: 5D
A30: 1st | B30: =$B$7*$H$30 -> 52.8 | C30: =$C$7*$H$30 -> 44 | D30: =$D$7*$H$30 -> 35.2 | E30: =$E$7*$H$30 -> 26.4 | F30: =$F$7*$H$30 -> 17.6 | G30: è | H30: 0.4
A31: 2nd | B31: =$B$7*$H$31 -> 39.6 | C31: =$C$7*$H$31 -> 33 | D31: =$D$7*$H$31 -> 26.4 | E31: =$E$7*$H$31 -> 19.8 | F31: =$F$7*$H$31 -> 13.2 | G31: è | H31: 0.3
A32: 3rd | B32: =$B$7*$H$32 -> 26.4 | C32: =$C$7*$H$32 -> 22 | D32: =$D$7*$H$32 -> 17.6 | E32: =$E$7*$H$32 -> 13.2 | F32: =$F$7*$H$32 -> 8.8 | G32: è | H32: 0.2
A33: 4th | B33: =$B$7*$H$33 -> 13.2 | C33: =$C$7*$H$33 -> 11 | D33: =$D$7*$H$33 -> 8.8 | E33: =$E$7*$H$33 -> 6.6 | F33: =$F$7*$H$33 -> 4.4 | G33: è | H33: 0.1
A34: Totals | B34: =SUM(B30:B33) -> 132 | C34: =SUM(C30:C33) -> 110 | D34: =SUM(D30:D33) -> 88 | E34: =SUM(E30:E33) -> 66 | F34: =SUM(F30:F33) -> 44 | G34: =SUM(B34:F34) -> 440 | H34: =SUM(H30:H33) -> 1
A36: For 144-200 riders 5 places
A37: Placings | B37: 1D | C37: 2D | D37: 3D | E37: 4D | F37: 5D
A38: 1st | B38: =$B$7*$H$38 -> 43.56 | C38: =$C$7*$H$38 -> 36.3 | D38: =$D$7*$H$38 -> 29.04 | E38: =$E$7*$H$38 -> 21.78 | F38: =$F$7*$H$38 -> 14.52 | G38: è | H38: 0.33
A39: 2nd | B39: =$B$7*$H$39 -> 35.64 | C39: =$C$7*$H$39 -> 29.7 | D39: =$D$7*$H$39 -> 23.76 | E39: =$E$7*$H$39 -> 17.82 | F39: =$F$7*$H$39 -> 11.88 | G39: è | H39: 0.27
A40: 3rd | B40: =$B$7*$H$40 -> 26.4 | C40: =$C$7*$H$40 -> 22 | D40: =$D$7*$H$40 -> 17.6 | E40: =$E$7*$H$40 -> 13.2 | F40: =$F$7*$H$40 -> 8.8 | G40: è | H40: 0.2
A41: 4th | B41: =$B$7*$H$41 -> 17.16 | C41: =$C$7*$H$41 -> 14.3 | D41: =$D$7*$H$41 -> 11.44 | E41: =$E$7*$H$41 -> 8.58 | F41: =$F$7*$H$41 -> 5.72 | G41: è | H41: 0.13
A42: 5th | B42: =$B$7*$H$42 -> 9.24 | C42: =$C$7*$H$42 -> 7.7 | D42: =$D$7*$H$42 -> 6.16 | E42: =$E$7*$H$42 -> 4.62 | F42: =$F$7*$H$42 -> 3.08 | G42: è | H42: 0.07
A43: Totals | B43: =SUM(B38:B42) -> 132 | C43: =SUM(C38:C42) -> 110 | D43: =SUM(D38:D42) -> 88 | E43: =SUM(E38:E42) -> 66 | F43: =SUM(F38:F42) -> 44 | G43: =SUM(B43:F43) -> 440 | H43: =SUM(H38:H42) -> 1
A45: For 201-250 riders 6 places
A46: Placings | B46: 1D | C46: 2D | D46: 3D | E46: 4D | F46: 5D
A47: 1st | B47: =$B$7*$H$47 -> 38.28 | C47: =$C$7*$H$47 -> 31.9 | D47: =$D$7*$H$47 -> 25.52 | E47: =$E$7*$H$47 -> 19.14 | F47: =$F$7*$H$47 -> 12.76 | G47: è | H47: 0.29
A48: 2nd | B48: =$B$7*$H$48 -> 31.68 | C48: =$C$7*$H$48 -> 26.4 | D48: =$D$7*$H$48 -> 21.12 | E48: =$E$7*$H$48 -> 15.84 | F48: =$F$7*$H$48 -> 10.56 | G48: è | H48: 0.24
A49: 3rd | B49: =$B$7*$H$49 -> 25.08 | C49: =$C$7*$H$49 -> 20.9 | D49: =$D$7*$H$49 -> 16.72 | E49: =$E$7*$H$49 -> 12.54 | F49: =$F$7*$H$49 -> 8.36 | G49: è | H49: 0.19
A50: 4th | B50: =$B$7*$H$50 -> 18.48 | C50: =$C$7*$H$50 -> 15.4 | D50: =$D$7*$H$50 -> 12.32 | E50: =$E$7*$H$50 -> 9.24 | F50: =$F$7*$H$50 -> 6.16 | G50: è | H50: 0.14
A51: 5th | B51: =$B$7*$H$51 -> 11.88 | C51: =$C$7*$H$51 -> 9.9 | D51: =$D$7*$H$51 -> 7.92 | E51: =$E$7*$H$51 -> 5.94 | F51: =$F$7*$H$51 -> 3.96 | G51: è | H51: 0.09
A52: 6th | B52: =$B$7*$H$52 -> 6.6 | C52: =$C$7*$H$52 -> 5.5 | D52: =$D$7*$H$52 -> 4.4 | E52: =$E$7*$H$52 -> 3.3 | F52: =$F$7*$H$52 -> 2.2 | G52: è | H52: 0.05
A53: Totals | B53: =SUM(B47:B52) -> 132 | C53: =SUM(C47:C52) -> 110 | D53: =SUM(D47:D52) -> 88 | E53: =SUM(E47:E52) -> 66 | F53: =SUM(F47:F52) -> 44 | G53: =SUM(B53:F53) -> 440 | H53: =SUM(H47:H52) -> 1
A55: For 251-333 riders 8 places
A56: Placings | B56: 1D | C56: 2D | D56: 3D | E56: 4D | F56: 5D
A57: 1st | B57: =$B$7*$H$57 -> 31.68 | C57: =$C$7*$H$57 -> 26.4 | D57: =$D$7*$H$57 -> 21.12 | E57: =$E$7*$H$57 -> 15.84 | F57: =$F$7*$H$57 -> 10.56 | G57: è | H57: 0.24
A58: 2nd | B58: =$B$7*$H$58 -> 26.4 | C58: =$C$7*$H$58 -> 22 | D58: =$D$7*$H$58 -> 17.6 | E58: =$E$7*$H$58 -> 13.2 | F58: =$F$7*$H$58 -> 8.8 | G58: è | H58: 0.2
A59: 3rd | B59: =$B$7*$H$59 -> 22.44 | C59: =$C$7*$H$59 -> 18.7 | D59: =$D$7*$H$59 -> 14.96 | E59: =$E$7*$H$59 -> 11.22 | F59: =$F$7*$H$59 -> 7.48 | G59: è | H59: 0.17
A60: 4th | B60: =$B$7*$H$60 -> 17.16 | C60: =$C$7*$H$60 -> 14.3 | D60: =$D$7*$H$60 -> 11.44 | E60: =$E$7*$H$60 -> 8.58 | F60: =$F$7*$H$60 -> 5.72 | G60: è | H60: 0.13
A61: 5th | B61: =$B$7*$H$61 -> 13.2 | C61: =$C$7*$H$61 -> 11 | D61: =$D$7*$H$61 -> 8.8 | E61: =$E$7*$H$61 -> 6.6 | F61: =$F$7*$H$61 -> 4.4 | G61: è | H61: 0.1
A62: 6th | B62: =$B$7*$H$62 -> 9.24 | C62: =$C$7*$H$62 -> 7.7 | D62: =$D$7*$H$62 -> 6.16 | E62: =$E$7*$H$62 -> 4.62 | F62: =$F$7*$H$62 -> 3.08 | G62: è | H62: 0.07
A63: 7th | B63: =$B$7*$H$63 -> 6.6 | C63: =$C$7*$H$63 -> 5.5 | D63: =$D$7*$H$63 -> 4.4 | E63: =$E$7*$H$63 -> 3.3 | F63: =$F$7*$H$63 -> 2.2 | G63: è | H63: 0.05
A64: 8th | B64: =$B$7*$H$64 -> 5.28 | C64: =$C$7*$H$64 -> 4.4 | D64: =$D$7*$H$64 -> 3.52 | E64: =$E$7*$H$64 -> 2.64 | F64: =$F$7*$H$64 -> 1.76 | G64: è | H64: 0.04
A65: Totals | B65: =SUM(B57:B64) -> 132 | C65: =SUM(C57:C64) -> 110 | D65: =SUM(D57:D64) -> 88 | E65: =SUM(E57:E64) -> 66 | F65: =SUM(F57:F64) -> 44 | G65: =SUM(B65:F65) -> 440 | H65: =SUM(H57:H64) -> 1
A67: For 334-500 riders 10 places
A68: Placings | B68: 1D | C68: 2D | D68: 3D | E68: 4D | F68: 5D
A69: 1st | B69: =$B$7*$H$69 -> 27.72 | C69: =$C$7*$H$69 -> 23.1 | D69: =$D$7*$H$69 -> 18.48 | E69: =$E$7*$H$69 -> 13.86 | F69: =$F$7*$H$69 -> 9.24 | G69: è | H69: 0.21
A70: 2nd | B70: =$B$7*$H$70 -> 23.76 | C70: =$C$7*$H$70 -> 19.8 | D70: =$D$7*$H$70 -> 15.84 | E70: =$E$7*$H$70 -> 11.88 | F70: =$F$7*$H$70 -> 7.92 | G70: è | H70: 0.18
A71: 3rd | B71: =$B$7*$H$71 -> 19.8 | C71: =$C$7*$H$71 -> 16.5 | D71: =$D$7*$H$71 -> 13.2 | E71: =$E$7*$H$71 -> 9.9 | F71: =$F$7*$H$71 -> 6.6 | G71: è | H71: 0.15
A72: 4th | B72: =$B$7*$H$72 -> 15.84 | C72: =$C$7*$H$72 -> 13.2 | D72: =$D$7*$H$72 -> 10.56 | E72: =$E$7*$H$72 -> 7.92 | F72: =$F$7*$H$72 -> 5.28 | G72: è | H72: 0.12
A73: 5th | B73: =$B$7*$H$73 -> 11.88 | C73: =$C$7*$H$73 -> 9.9 | D73: =$D$7*$H$73 -> 7.92 | E73: =$E$7*$H$73 -> 5.94 | F73: =$F$7*$H$73 -> 3.96 | G73: è | H73: 0.09
A74: 6th | B74: =$B$7*$H$74 -> 9.24 | C74: =$C$7*$H$74 -> 7.7 | D74: =$D$7*$H$74 -> 6.16 | E74: =$E$7*$H$74 -> 4.62 | F74: =$F$7*$H$74 -> 3.08 | G74: è | H74: 0.07
A75: 7th | B75: =$B$7*$H$75 -> 7.92 | C75: =$C$7*$H$75 -> 6.6 | D75: =$D$7*$H$75 -> 5.28 | E75: =$E$7*$H$75 -> 3.96 | F75: =$F$7*$H$75 -> 2.64 | G75: è | H75: 0.06
A76: 8th | B76: =$B$7*$H$76 -> 6.6 | C76: =$C$7*$H$76 -> 5.5 | D76: =$D$7*$H$76 -> 4.4 | E76: =$E$7*$H$76 -> 3.3 | F76: =$F$7*$H$76 -> 2.2 | G76: è | H76: 0.05
A77: 9th | B77: =$B$7*$H$77 -> 5.28 | C77: =$C$7*$H$77 -> 4.4 | D77: =$D$7*$H$77 -> 3.52 | E77: =$E$7*$H$77 -> 2.64 | F77: =$F$7*$H$77 -> 1.76 | G77: è | H77: 0.04
A78: 10th | B78: =$B$7*$H$78 -> 3.96 | C78: =$C$7*$H$78 -> 3.3 | D78: =$D$7*$H$78 -> 2.64 | E78: =$E$7*$H$78 -> 1.98 | F78: =$F$7*$H$78 -> 1.32 | G78: è | H78: 0.03
A79: Totals | B79: =SUM(B69:B78) -> 132 | C79: =SUM(C69:C78) -> 110 | D79: 88 | E79: 66 | F79: 44 | G79: =SUM(B79:F79) -> 440 | H79: =SUM(H69:H78) -> 1
A81: For 501-666 riders 12 places
A82: Placings | B82: 1D | C82: 2D | D82: 3D | E82: 4D | F82: 5D
A83: 1st | B83: =$B$7*$H$83 -> 25.08 | C83: =$C$7*$H$83 -> 20.9 | D83: =$D$7*$H$83 -> 16.72 | E83: =$E$7*$H$83 -> 12.54 | F83: =$F$7*$H$83 -> 8.36 | G83: è | H83: 0.19
A84: 2nd | B84: =$B$7*$H$84 -> 19.8 | C84: =$C$7*$H$84 -> 16.5 | D84: =$D$7*$H$84 -> 13.2 | E84: =$E$7*$H$84 -> 9.9 | F84: =$F$7*$H$84 -> 6.6 | G84: è | H84: 0.15
A85: 3rd | B85: =$B$7*$H$85 -> 15.84 | C85: =$C$7*$H$85 -> 13.2 | D85: =$D$7*$H$85 -> 10.56 | E85: =$E$7*$H$85 -> 7.92 | F85: =$F$7*$H$85 -> 5.28 | G85: è | H85: 0.12
A86: 4th | B86: =$B$7*$H$86 -> 13.2 | C86: =$C$7*$H$86 -> 11 | D86: =$D$7*$H$86 -> 8.8 | E86: =$E$7*$H$86 -> 6.6 | F86: =$F$7*$H$86 -> 4.4 | G86: è | H86: 0.1
A87: 5th | B87: =$B$7*$H$87 -> 11.88 | C87: =$C$7*$H$87 -> 9.9 | D87: =$D$7*$H$87 -> 7.92 | E87: =$E$7*$H$87 -> 5.94 | F87: =$F$7*$H$87 -> 3.96 | G87: è | H87: 0.09
A88: 6th | B88: =$B$7*$H$88 -> 10.56 | C88: =$C$7*$H$88 -> 8.8 | D88: =$D$7*$H$88 -> 7.04 | E88: =$E$7*$H$88 -> 5.28 | F88: =$F$7*$H$88 -> 3.52 | G88: è | H88: 0.08
A89: 7th | B89: =$B$7*$H$89 -> 9.24 | C89: =$C$7*$H$89 -> 7.7 | D89: =$D$7*$H$89 -> 6.16 | E89: =$E$7*$H$89 -> 4.62 | F89: =$F$7*$H$89 -> 3.08 | G89: è | H89: 0.07
A90: 8th | B90: =$B$7*$H$90 -> 7.92 | C90: =$C$7*$H$90 -> 6.6 | D90: =$D$7*$H$90 -> 5.28 | E90: =$E$7*$H$90 -> 3.96 | F90: =$F$7*$H$90 -> 2.64 | G90: è | H90: 0.06
A91: 9th | B91: =$B$7*$H$91 -> 6.6 | C91: =$C$7*$H$91 -> 5.5 | D91: =$D$7*$H$91 -> 4.4 | E91: =$E$7*$H$91 -> 3.3 | F91: =$F$7*$H$91 -> 2.2 | G91: è | H91: 0.05
A92: 10th | B92: =$B$7*$H$92 -> 5.28 | C92: =$C$7*$H$92 -> 4.4 | D92: =$D$7*$H$92 -> 3.52 | E92: =$E$7*$H$92 -> 2.64 | F92: =$F$7*$H$92 -> 1.76 | G92: è | H92: 0.04
A93: 11th | B93: =$B$7*$H$93 -> 3.96 | C93: =$C$7*$H$93 -> 3.3 | D93: =$D$7*$H$93 -> 2.64 | E93: =$E$7*$H$93 -> 1.98 | F93: =$F$7*$H$93 -> 1.32 | G93: è | H93: 0.03
A94: 12th | B94: =$B$7*$H$94 -> 2.64 | C94: =$C$7*$H$94 -> 2.2 | D94: =$D$7*$H$94 -> 1.76 | E94: =$E$7*$H$94 -> 1.32 | F94: =$F$7*$H$94 -> 0.88 | G94: è | H94: 0.02
A95: Totals | B95: =SUM(B83:B94) -> 132 | C95: =SUM(C83:C94) -> 110 | D95: =SUM(D83:D94) -> 88 | E95: =SUM(E83:E94) -> 66 | F95: =SUM(F83:F94) -> 44 | G95: =SUM(B95:F95) -> 440 | H95: =SUM(H83:H94) -> 1
A97: For 667-1000 riders 15 places
A98: Placings | B98: 1D | C98: 2D | D98: 3D | E98: 4D | F98: 5D
A99: 1st | B99: =$B$7*$H$99 -> 23.76 | C99: =$C$7*$H$99 -> 19.8 | D99: =$D$7*$H$99 -> 15.84 | E99: =$E$7*$H$99 -> 11.88 | F99: =$F$7*$H$99 -> 7.92 | G99: è | H99: 0.18
A100: 2nd | B100: =$B$7*$H$100 -> 19.8 | C100: =$C$7*$H$100 -> 16.5 | D100: =$D$7*$H$100 -> 13.2 | E100: =$E$7*$H$100 -> 9.9 | F100: =$F$7*$H$100 -> 6.6 | G100: è | H100: 0.15
A101: 3rd | B101: =$B$7*$H$101 -> 15.84 | C101: =$C$7*$H$101 -> 13.2 | D101: =$D$7*$H$101 -> 10.56 | E101: =$E$7*$H$101 -> 7.92 | F101: =$F$7*$H$101 -> 5.28 | G101: è | H101: 0.12
A102: 4th | B102: =$B$7*$H$102 -> 13.2 | C102: =$C$7*$H$102 -> 11 | D102: =$D$7*$H$102 -> 8.8 | E102: =$E$7*$H$102 -> 6.6 | F102: =$F$7*$H$102 -> 4.4 | G102: è | H102: 0.1
A103: 5th | B103: =$B$7*$H$103 -> 11.22 | C103: =$C$7*$H$103 -> 9.35 | D103: =$D$7*$H$103 -> 7.48 | E103: =$E$7*$H$103 -> 5.61 | F103: =$F$7*$H$103 -> 3.74 | G103: è | H103: 0.085
A104: 6th | B104: =$B$7*$H$104 -> 9.24 | C104: =$C$7*$H$104 -> 7.7 | D104: =$D$7*$H$104 -> 6.16 | E104: =$E$7*$H$104 -> 4.62 | F104: =$F$7*$H$104 -> 3.08 | G104: è | H104: 0.07
A105: 7th | B105: =$B$7*$H$105 -> 7.92 | C105: =$C$7*$H$105 -> 6.6 | D105: =$D$7*$H$105 -> 5.28 | E105: =$E$7*$H$105 -> 3.96 | F105: =$F$7*$H$105 -> 2.64 | G105: è | H105: 0.06
A106: 8th | B106: =$B$7*$H$106 -> 6.6 | C106: =$C$7*$H$106 -> 5.5 | D106: =$D$7*$H$106 -> 4.4 | E106: =$E$7*$H$106 -> 3.3 | F106: =$F$7*$H$106 -> 2.2 | G106: è | H106: 0.05
A107: 9th | B107: =$B$7*$H$107 -> 5.61 | C107: =$C$7*$H$107 -> 4.675 | D107: =$D$7*$H$107 -> 3.74 | E107: =$E$7*$H$107 -> 2.805 | F107: =$F$7*$H$107 -> 1.87 | G107: è | H107: 0.0425
A108: 10th | B108: =$B$7*$H$108 -> 4.62 | C108: =$C$7*$H$108 -> 3.85 | D108: =$D$7*$H$108 -> 3.08 | E108: =$E$7*$H$108 -> 2.31 | F108: =$F$7*$H$108 -> 1.54 | G108: è | H108: 0.035
A109: 11th | B109: =$B$7*$H$109 -> 3.96 | C109: =$C$7*$H$109 -> 3.3 | D109: =$D$7*$H$109 -> 2.64 | E109: =$E$7*$H$109 -> 1.98 | F109: =$F$7*$H$109 -> 1.32 | G109: è | H109: 0.03
A110: 12th | B110: =$B$7*$H$110 -> 3.3 | C110: =$C$7*$H$110 -> 2.75 | D110: =$D$7*$H$110 -> 2.2 | E110: =$E$7*$H$110 -> 1.65 | F110: =$F$7*$H$110 -> 1.1 | G110: è | H110: 0.025
A111: 13th | B111: =$B$7*$H$111 -> 2.64 | C111: =$C$7*$H$111 -> 2.2 | D111: =$D$7*$H$111 -> 1.76 | E111: =$E$7*$H$111 -> 1.32 | F111: =$F$7*$H$111 -> 0.88 | G111: è | H111: 0.02
A112: 14th | B112: =$B$7*$H$112 -> 2.31 | C112: =$C$7*$H$112 -> 1.925 | D112: =$D$7*$H$112 -> 1.54 | E112: =$E$7*$H$112 -> 1.155 | F112: =$F$7*$H$112 -> 0.77 | G112: è | H112: 0.0175
A113: 15th | B113: =$B$7*$H$113 -> 1.98 | C113: =$C$7*$H$113 -> 1.65 | D113: =$D$7*$H$113 -> 1.32 | E113: =$E$7*$H$113 -> 0.99 | F113: =$F$7*$H$113 -> 0.66 | G113: è | H113: 0.015
A114: Totals | B114: =SUM(B99:B113) -> 132 | C114: =SUM(C99:C113) -> 110 | D114: =SUM(D99:D113) -> 88 | E114: =SUM(E99:E113) -> 66 | F114: =SUM(F99:F113) -> 44 | G114: =SUM(B114:F114) -> 440 | H114: =SUM(H99:H113) -> 1
A116: For 1001-1500 riders 20 places
A117: Placings | B117: 1D | C117: 2D | D117: 3D | E117: 4D | F117: 5D
A118: 1st | B118: =$B$7*$H$118 -> 18.48 | C118: =$C$7*$H$118 -> 15.4 | D118: =$D$7*$H$118 -> 12.32 | E118: =$E$7*$H$118 -> 9.24 | F118: =$F$7*$H$118 -> 6.16 | G118: è | H118: 0.14
A119: 2nd | B119: =$B$7*$H$119 -> 14.52 | C119: =$C$7*$H$119 -> 12.1 | D119: =$D$7*$H$119 -> 9.68 | E119: =$E$7*$H$119 -> 7.26 | F119: =$F$7*$H$119 -> 4.84 | G119: è | H119: 0.11
A120: 3rd | B120: =$B$7*$H$120 -> 11.88 | C120: =$C$7*$H$120 -> 9.9 | D120: =$D$7*$H$120 -> 7.92 | E120: =$E$7*$H$120 -> 5.94 | F120: =$F$7*$H$120 -> 3.96 | G120: è | H120: 0.09
A121: 4th | B121: =$B$7*$H$121 -> 10.164 | C121: =$C$7*$H$121 -> 8.47 | D121: =$D$7*$H$121 -> 6.776 | E121: =$E$7*$H$121 -> 5.082 | F121: =$F$7*$H$121 -> 3.388 | G121: è | H121: 0.077
A122: 5th | B122: =$B$7*$H$122 -> 9.24 | C122: =$C$7*$H$122 -> 7.7 | D122: =$D$7*$H$122 -> 6.16 | E122: =$E$7*$H$122 -> 4.62 | F122: =$F$7*$H$122 -> 3.08 | G122: è | H122: 0.07
A123: 6th | B123: =$B$7*$H$123 -> 8.58 | C123: =$C$7*$H$123 -> 7.15 | D123: =$D$7*$H$123 -> 5.72 | E123: =$E$7*$H$123 -> 4.29 | F123: =$F$7*$H$123 -> 2.86 | G123: è | H123: 0.065
A124: 7th | B124: =$B$7*$H$124 -> 7.92 | C124: =$C$7*$H$124 -> 6.6 | D124: =$D$7*$H$124 -> 5.28 | E124: =$E$7*$H$124 -> 3.96 | F124: =$F$7*$H$124 -> 2.64 | G124: è | H124: 0.06
A125: 8th | B125: =$B$7*$H$125 -> 7.26 | C125: =$C$7*$H$125 -> 6.05 | D125: =$D$7*$H$125 -> 4.84 | E125: =$E$7*$H$125 -> 3.63 | F125: =$F$7*$H$125 -> 2.42 | G125: è | H125: 0.055
A126: 9th | B126: =$B$7*$H$126 -> 6.6 | C126: =$C$7*$H$126 -> 5.5 | D126: =$D$7*$H$126 -> 4.4 | E126: =$E$7*$H$126 -> 3.3 | F126: =$F$7*$H$126 -> 2.2 | G126: è | H126: 0.05
A127: 10th | B127: =$B$7*$H$127 -> 5.94 | C127: =$C$7*$H$127 -> 4.95 | D127: =$D$7*$H$127 -> 3.96 | E127: =$E$7*$H$127 -> 2.97 | F127: =$F$7*$H$127 -> 1.98 | G127: è | H127: 0.045
A128: 11th | B128: =$B$7*$H$128 -> 5.28 | C128: =$C$7*$H$128 -> 4.4 | D128: =$D$7*$H$128 -> 3.52 | E128: =$E$7*$H$128 -> 2.64 | F128: =$F$7*$H$128 -> 1.76 | G128: è | H128: 0.04
A129: 12th | B129: =$B$7*$H$129 -> 4.884 | C129: =$C$7*$H$129 -> 4.07 | D129: =$D$7*$H$129 -> 3.256 | E129: =$E$7*$H$129 -> 2.442 | F129: =$F$7*$H$129 -> 1.628 | G129: è | H129: 0.037
A130: 13th | B130: =$B$7*$H$130 -> 4.356 | C130: =$C$7*$H$130 -> 3.63 | D130: =$D$7*$H$130 -> 2.904 | E130: =$E$7*$H$130 -> 2.178 | F130: =$F$7*$H$130 -> 1.452 | G130: è | H130: 0.033
A131: 14th | B131: =$B$7*$H$131 -> 3.828 | C131: =$C$7*$H$131 -> 3.19 | D131: =$D$7*$H$131 -> 2.552 | E131: =$E$7*$H$131 -> 1.914 | F131: =$F$7*$H$131 -> 1.276 | G131: è | H131: 0.029
A132: 15th | B132: =$B$7*$H$132 -> 3.3 | C132: =$C$7*$H$132 -> 2.75 | D132: =$D$7*$H$132 -> 2.2 | E132: =$E$7*$H$132 -> 1.65 | F132: =$F$7*$H$132 -> 1.1 | G132: è | H132: 0.025
A133: 16th | B133: =$B$7*$H$133 -> 2.772 | C133: =$C$7*$H$133 -> 2.31 | D133: =$D$7*$H$133 -> 1.848 | E133: =$E$7*$H$133 -> 1.386 | F133: =$F$7*$H$133 -> 0.924 | G133: è | H133: 0.021
A134: 17th | B134: =$B$7*$H$134 -> 2.244 | C134: =$C$7*$H$134 -> 1.87 | D134: =$D$7*$H$134 -> 1.496 | E134: =$E$7*$H$134 -> 1.122 | F134: =$F$7*$H$134 -> 0.748 | G134: è | H134: 0.017
A135: 18th | B135: =$B$7*$H$135 -> 1.848 | C135: =$C$7*$H$135 -> 1.54 | D135: =$D$7*$H$135 -> 1.232 | E135: =$E$7*$H$135 -> 0.924 | F135: =$F$7*$H$135 -> 0.616 | G135: è | H135: 0.014
A136: 19th | B136: =$B$7*$H$136 -> 1.584 | C136: =$C$7*$H$136 -> 1.32 | D136: =$D$7*$H$136 -> 1.056 | E136: =$E$7*$H$136 -> 0.792 | F136: =$F$7*$H$136 -> 0.528 | G136: è | H136: 0.012
A137: 20th | B137: =$B$7*$H$137 -> 1.32 | C137: =$C$7*$H$137 -> 1.1 | D137: =$D$7*$H$137 -> 0.88 | E137: =$E$7*$H$137 -> 0.66 | F137: =$F$7*$H$137 -> 0.44 | G137: è | H137: 0.01
A138: Totals | B138: =SUM(B118:B137) -> 132 | C138: =SUM(C118:C137) -> 110 | D138: 88 | E138: 66 | F138: 44 | G138: =SUM(B138:F138) -> 440 | H138: =SUM(H118:H137) -> 1
A140: For 1501 or More riders 30 places
A141: Placings | B141: 1D | C141: 2D | D141: 3D | E141: 4D | F141: 5D
A142: 1st | B142: =$B$7*$H142 -> 15.84 | C142: =$C$7*$H142 -> 13.2 | D142: =$D$7*$H142 -> 10.56 | E142: =$E$7*$H142 -> 7.92 | F142: =$F$7*$H142 -> 5.28 | G142: è | H142: 0.12
A143: 2nd | B143: =$B$7*$H143 -> 12.54 | C143: 10.45 | D143: 8.36 | E143: 6.27 | F143: 4.18 | G143: è | H143: 0.095
A144: 3rd | B144: =$B$7*$H144 -> 9.636 | C144: 8.03 | D144: 6.424 | E144: 4.818 | F144: 3.212 | G144: è | H144: 0.073
A145: 4th | B145: =$B$7*$H145 -> 8.184 | C145: 6.82 | D145: 5.456 | E145: 4.092 | F145: 2.728 | G145: è | H145: 0.062
A146: 5th | B146: 6.6 | C146: 5.5 | D146: 4.4 | E146: 3.3 | F146: 2.2 | G146: è | H146: 0.05
A147: 6th | B147: 5.94 | C147: 4.95 | D147: 3.96 | E147: 2.97 | F147: 1.98 | G147: è | H147: 0.045
A148: 7th | B148: 5.676 | C148: 4.73 | D148: 3.784 | E148: 2.838 | F148: 1.892 | G148: è | H148: 0.043
A149: 8th | B149: 5.28 | C149: 4.4 | D149: 3.52 | E149: 2.64 | F149: 1.76 | G149: è | H149: 0.04
A150: 9th | B150: 4.884 | C150: 4.07 | D150: 3.256 | E150: 2.442 | F150: 1.628 | G150: è | H150: 0.037
A151: 10th | B151: 4.62 | C151: 3.85 | D151: 3.08 | E151: 2.31 | F151: 1.54 | G151: è | H151: 0.035
A152: 11th | B152: 4.356 | C152: 3.63 | D152: 2.904 | E152: 2.178 | F152: 1.452 | G152: è | H152: 0.033
A153: 12th | B153: 4.092 | C153: 3.41 | D153: 2.728 | E153: 2.046 | F153: 1.364 | G153: è | H153: 0.031
A154: 13th | B154: 3.828 | C154: 3.19 | D154: 2.552 | E154: 1.914 | F154: 1.276 | G154: è | H154: 0.029
A155: 14th | B155: 3.564 | C155: 2.97 | D155: 2.376 | E155: 1.782 | F155: 1.188 | G155: è | H155: 0.027
A156: 15th | B156: 3.3 | C156: 2.75 | D156: 2.2 | E156: 1.65 | F156: 1.1 | G156: è | H156: 0.025
A157: 16th | B157: 3.168 | C157: 2.64 | D157: 2.112 | E157: 1.584 | F157: 1.056 | G157: è | H157: 0.024
A158: 17th | B158: 3.036 | C158: 2.53 | D158: 2.024 | E158: 1.518 | F158: 1.012 | G158: è | H158: 0.023
A159: 18th | B159: 2.904 | C159: 2.42 | D159: 1.936 | E159: 1.452 | F159: 0.968 | G159: è | H159: 0.022
A160: 19th | B160: 2.772 | C160: 2.31 | D160: 1.848 | E160: 1.386 | F160: 0.924 | G160: è | H160: 0.021
A161: 20th | B161: 2.64 | C161: 2.2 | D161: 1.76 | E161: 1.32 | F161: 0.88 | G161: è | H161: 0.02
A162: 21st | B162: 2.508 | C162: 2.09 | D162: 1.672 | E162: 1.254 | F162: 0.836 | G162: è | H162: 0.019
A163: 22nd | B163: 2.376 | C163: 1.98 | D163: 1.584 | E163: 1.188 | F163: 0.792 | G163: è | H163: 0.018
A164: 23rd | B164: 2.244 | C164: 1.87 | D164: 1.496 | E164: 1.122 | F164: 0.748 | G164: è | H164: 0.017
A165: 24th | B165: 2.112 | C165: 1.76 | D165: 1.408 | E165: 1.056 | F165: 0.704 | G165: è | H165: 0.016
A166: 25th | B166: 1.98 | C166: 1.65 | D166: 1.32 | E166: 0.99 | F166: 0.66 | G166: è | H166: 0.015
A167: 26th | B167: 1.848 | C167: 1.54 | D167: 1.232 | E167: 0.924 | F167: 0.616 | G167: è | H167: 0.014
A168: 27th | B168: 1.716 | C168: 1.43 | D168: 1.144 | E168: 0.858 | F168: 0.572 | G168: è | H168: 0.013
A169: 28th | B169: 1.584 | C169: 1.32 | D169: 1.056 | E169: 0.792 | F169: 0.528 | G169: è | H169: 0.012
A170: 29th | B170: 1.452 | C170: 1.21 | D170: 0.968 | E170: 0.726 | F170: 0.484 | G170: è | H170: 0.011
A171: 30th | B171: 1.32 | C171: 1.1 | D171: 0.88 | E171: 0.66 | F171: 0.44 | G171: è | H171: 0.01
A172: Totals | B172: =SUM(B142:B171) -> 132 | C172: =SUM(C142:C171) -> 110 | D172: 88 | E172: 66 | F172: 44 | G172: =SUM(B172:F172) -> 440 | H172: =SUM(H142:H171) -> 1

Sheet DON'T TOUCH (hidden)
A2: Yes | C2: S | D2: 5 | E2: X
C3: A | D3: 10
C4: Y | D4: 15
C5: P | D5: BP
D6: SCR
